Workbook

Sheet Start
D1: =IF(ISNA(VLOOKUP($E$1,$A$100:$B$598,2,0)),0,VLOOKUP($E$1,$A$100:$B$598,2,0)) -> 2183 | E1: =+DFES!E1 -> 2183 | O1: Allocation | P1: =IF(ISNA(VLOOKUP($E$1,DFES!$A$10:$J$438,3,0)),0,VLOOKUP($E$1,DFES!$A$10:$J$438,3,0)) -> 2640
B9: 2018/19 Free School Meals Supplementary Grant
B11: Please Left Click on the Macro Button below to continue.
B12: If the aforementioned does not function, please refer to the Macro Guidance on the budget pages>>. | M12: macro guidance
B13: Should the Protected View message be visible on the Toolbar, click on Enable Editing.
A100: 1100 | B100: 1100 | I100: Nrsy | J100: N
A101: 2004 | B101: 2004 | I101: J | J101: P
A102: 2005 | B102: 2005 | I102: I | J102: P
A103: 2008 | B103: 2008 | I103: JI | J103: P
A104: 2010 | B104: 2010 | I104: Sec (16+) | J104: SEC
A105: 2011 | B105: 2011 | I105: Sec | J105: SEC
A106: 2014 | B106: 2014 | I106: Spcl | J106: SPEC
A107: 2015 | B107: 2015
A108: 2016 | B108: 2016
A109: 2017 | B109: 2017
A110: 2018 | B110: 2018
A111: 2021 | B111: 2021
A112: 2024 | B112: 2024
A113: 2025 | B113: 2025
A114: 2026 | B114: 2026
A115: 2030 | B115: 2030
A116: 2040 | B116: 2040
A117: 2052 | B117: 2052
A118: 2053 | B118: 2053
A119: 2054 | B119: 2054
A120: 2055 | B120: 2055
A121: 2062 | B121: 2062
A122: 2063 | B122: 2063
A123: 2067 | B123: 2067
A124: 2079 | B124: 2079
A125: 2081 | B125: 2081
A126: 2087 | B126: 2087
A127: 2091 | B127: 2091
A128: 2092 | B128: 2092
A129: 2097 | B129: 2097
A130: 2099 | B130: 2099
A131: 2108 | B131: 2108
A132: 2115 | B132: 2115
A133: 2118 | B133: 2118
A134: 2119 | B134: 2119
A135: 2127 | B135: 2127
A136: 2128 | B136: 2128
A137: 2129 | B137: 2129
A138: 2133 | B138: 2133
A139: 2142 | B139: 2142
A140: 2149 | B140: 2149
A141: 2150 | B141: 2150
A142: 2153 | B142: 2153
A143: 2155 | B143: 2155
A144: 2157 | B144: 2157
A145: 2159 | B145: 2159
A146: 2160 | B146: 2160
A147: 2161 | B147: 2161
A148: 2169 | B148: 2169
A149: 2174 | B149: 2174
A150: 2176 | B150: 2176
A151: 2178 | B151: 2178
A152: 2179 | B152: 2179
A153: 2183 | B153: 2183
A154: 2184 | B154: 2184
A155: 2185 | B155: 2185
A156: 2189 | B156: 2189
A157: 2190 | B157: 2190
A158: 2191 | B158: 2191
A159: 2192 | B159: 2192
A160: 2225 | B160: 2225
A161: 2227 | B161: 2227
A162: 2231 | B162: 2231
A163: 2236 | B163: 2236
A164: 2238 | B164: 2238
A165: 2239 | B165: 2239
A166: 2241 | B166: 2241
A167: 2245 | B167: 2245
A168: 2246 | B168: 2246
A169: 2251 | B169: 2251
A170: 2254 | B170: 2254
A171: 2276 | B171: 2276
A172: 2278 | B172: 2278
A173: 2288 | B173: 2288
A174: 2289 | B174: 2289
A175: 2293 | B175: 2293
A176: 2296 | B176: 2296
A177: 2300 | B177: 2300
A178: 2306 | B178: 2306
A179: 2308 | B179: 2308
A180: 2312 | B180: 2312
A181: 2313 | B181: 2313
A182: 2314 | B182: 2314
A183: 2317 | B183: 2317
A184: 2321 | B184: 2321
A185: 2401 | B185: 2401
A186: 2402 | B186: 2402
A187: 2412 | B187: 2412
A188: 2416 | B188: 2416
A189: 2420 | B189: 2420
A190: 2425 | B190: 2425
A191: 2429 | B191: 2429
A192: 2435 | B192: 2435
A193: 2436 | B193: 2436
A194: 2438 | B194: 2438
A195: 2441 | B195: 2441
A196: 2445 | B196: 2445
A197: 2454 | B197: 2454
A198: 2456 | B198: 2456
A199: 2457 | B199: 2457
A200: 2462 | B200: 2462
A201: 2464 | B201: 2464
A202: 2465 | B202: 2465
A203: 2466 | B203: 2466
A204: 2469 | B204: 2469
A205: 2474 | B205: 2474
A206: 2477 | B206: 2477
A207: 2478 | B207: 2478
A208: 2479 | B208: 2479
A209: 2482 | B209: 2482
A210: 2485 | B210: 2485
A211: 2486 | B211: 2486
A212: 3002 | B212: 3002
A213: 3003 | B213: 3003
A214: 3010 | B214: 3010
A215: 3016 | B215: 3016
A216: 3019 | B216: 3019
A217: 3025 | B217: 3025
A218: 3302 | B218: 3302
A219: 3307 | B219: 3307
A220: 3310 | B220: 3310
A221: 3316 | B221: 3316
A222: 3317 | B222: 3317
A223: 3318 | B223: 3318
A224: 3319 | B224: 3319
A225: 3320 | B225: 3320
A226: 3321 | B226: 3321
A227: 3322 | B227: 3322
A228: 3323 | B228: 3323
A229: 3325 | B229: 3325
A230: 3327 | B230: 3327
A231: 3328 | B231: 3328
A232: 3329 | B232: 3329
A233: 3331 | B233: 3331
A234: 3335 | B234: 3335
A235: 3337 | B235: 3337
A236: 3339 | B236: 3339
A237: 3344 | B237: 3344
A238: 3346 | B238: 3346
A239: 3347 | B239: 3347
A240: 3349 | B240: 3349
A241: 3351 | B241: 3351
A242: 3352 | B242: 3352
A243: 3353 | B243: 3353
A244: 3355 | B244: 3355
A245: 3357 | B245: 3357
A246: 3359 | B246: 3359
A247: 3360 | B247: 3360
A248: 3361 | B248: 3361
A249: 3365 | B249: 3365
A250: 3367 | B250: 3367
A251: 3371 | B251: 3371
A252: 3372 | B252: 3372
A253: 3375 | B253: 3375
A254: 3377 | B254: 3377
A255: 3380 | B255: 3380
A256: 3381 | B256: 3381
A257: 3382 | B257: 3382
A258: 3385 | B258: 3385
A259: 3386 | B259: 3386
A260: 3406 | B260: 3406
A261: 3409 | B261: 3409
A262: 3410 | B262: 3410
A263: 3411 | B263: 3411
A264: 3421 | B264: 3421
A265: 3428 | B265: 3428
A266: 3431 | B266: 3431
A267: 3432 | B267: 3432
A268: 3435 | B268: 3435
A269: 3436 | B269: 3436
A270: 4015 | B270: 4015
A271: 4063 | B271: 4063
A272: 4173 | B272: 4173
A273: 4187 | B273: 4187
A274: 4188 | B274: 4188
A275: 4193 | B275: 4193
A276: 4201 | B276: 4201
A277: 4237 | B277: 4237
A278: 4333 | B278: 4333
A279: 4334 | B279: 4334
A280: 4606 | B280: 4606
A281: 4625 | B281: 4625
A282: 4801 | B282: 4801
A283: 4804 | B283: 4804
A284: 5202 | B284: 5202
A285: 5203 | B285: 5203
A286: 5413 | B286: 5413
A287: 5415 | B287: 5415
A288: 5949 | B288: 5949
A289: 7006 | B289: 7006
A290: 7009 | B290: 7009
A291: 7012 | B291: 7012
A292: 7014 | B292: 7014
A293: 7016 | B293: 7016
A294: 7026 | B294: 7026
... 32 more rows

Sheet School List (hidden)
CA1: ok
A4: DFE | B4: School
A5: Number | B5: Name
A6: 3318 | B6: ABBEY RC JI
A7: 2020 | B7: ACOCKS GREEN ACADEMY
A8: 2010 | B8: ADDERLEY JI
A9: 1027 | B9: ADDERLEY Nrsy
A10: 3433 | B10: ALBERT BRADBEER JI NC
A11: 5949 | B11: AL-FURQAN JI
A12: 4334 | B12: AL-HIJRAH Sec
A13: 2153 | B13: ALLENS CROFT JI
A14: 1017 | B14: ALLENS CROFT Nrsy
A15: 2472 | B15: ALSTON JI NC
A16: 2062 | B16: ANDERTON PARK JI NC
A17: 2479 | B17: ANGLESEY JI NC
A18: 4804 | B18: ARCHBISHOP ILSLEY RC Sec (16+)
A19: 2300 | B19: ARDEN JI NC
A20: 2041 | B20: ARK ROSE ACADEMY
A21: 2056 | B21: ARK TINDAL ACADEMY
A22: 4307 | B22: ARTHUR TERRY ACAD Sec (16+)
A23: 4220 | B23: ASTON MANOR ACADEMY
A24: 2443 | B24: ASTON TOWER JI NC
A25: 3412 | B25: AUDLEY JI NC
A26: 4333 | B26: BALAAM WOOD Sec
A27: 2026 | B27: BANNERS GATE PRIMARY SCHOOL JI NC
A28: 2014 | B28: BARFORD JI NC
A29: 4108 | B29: BARTLEY GREEN ACADEMY
A30: 7016 | B30: BASKERVILLE Spcl
A31: 5400 | B31: BAVERSTOCK ACADEMY (16+)
A32: 7052 | B32: BEAUFORT Spcl
A33: 2239 | B33: BELLFIELD I NC
A34: 2241 | B34: BELLFIELD J
A35: 2456 | B35: BELLS FARM JI
A36: 2435 | B36: BENSON JI NC
A37: 2072 | B37: BILLESLEY ACADEMY
A38: 2025 | B38: BIRCHES GREEN I NC
A39: 2024 | B39: BIRCHES GREEN J
A40: 2297 | B40: BIRCHFIELD JI NC
A41: 5413 | B41: BISHOP CHALLONER Sec (16+)
A42: 4660 | B42: BISHOP VESEY'S ACAD Sec (16+)
A43: 4661 | B43: BISHOP WALSH RC Sec (16+)
A44: 2107 | B44: BLAKENHALE ACAD J
A45: 2102 | B45: BLAKENHALE I ACAD
A46: 2254 | B46: BLAKESLEY HALL JI
A47: 1025 | B47: BLOOMSBURY Nrsy
A48: 2402 | B48: BOLDMERE I NC
A49: 2401 | B49: BOLDMERE J
A50: 4115 | B50: BORDESLEY GREEN GIRLS Sec (16+)
A51: 2030 | B51: BORDESLEY GREEN JI NC
A52: 1001 | B52: BORDESLEY GREEN Nrsy
A53: 2002 | B53: BORDESLEY VILLAGE JI NC
A54: 3354 | B54: BOURNVILLE I
A55: 3353 | B55: BOURNVILLE J
A56: 4238 | B56: BOURNVILLE Sec (16+)
A57: 7030 | B57: BRAIDWOOD Spcl
A58: 7038 | B58: BRAYS Spcl
A59: 1002 | B59: BREARLEY ST Nrsy
A60: 7049 | B60: BRIDGE Spcl
A61: 2238 | B61: BROADMEADOW I NC
A62: 2236 | B62: BROADMEADOW J
A63: 4227 | B63: BROADWAY ACADEMY(16+)
A64: 2034 | B64: BROOKFIELDS JI NC
A65: 2295 | B65: BROOKVALE ACADEMY
A66: 2035 | B66: BROWNMEAD JI
A67: 2465 | B67: CALSHOT JI NC
A68: 7013 | B68: CALTHORPE Spcl
A69: 2039 | B69: CANTERBURY CROSS JI NC
A70: 4801 | B70: CARDINAL WISEMAN RC Sec
A71: 1048 | B71: CASTLE VALE Nrsy
A72: 2312 | B72: CHAD VALE JI
A73: 2305 | B73: CHANDOS JI NC
A74: 7051 | B74: CHERRY OAK Spcl
A75: 2040 | B75: CHERRY ORCHARD JI NC
A76: 2251 | B76: CHILCOTE JI NC
A77: 2047 | B77: CHILWELL CROFT ACADEMY
A78: 2272 | B78: CHIVENOR JI
A79: 3319 | B79: CHRIST THE KING RC JI NC
A80: 3002 | B80: CHRISTCHURCH CE JI NC
A81: 1100 | B81: City of Birmingham
A82: 2134 | B82: CITY ROAD ACADEMY
A83: 3432 | B83: CLIFTON JI NC
A84: 4233 | B84: COCKSHUT HILL Sec (16+)
A85: 2289 | B85: COFTON JI
A86: 2185 | B86: COLEBOURNE JI
A87: 2052 | B87: COLMERS FARM I
A88: 2051 | B88: COLMERS FARM J
A89: 5416 | B89: COLMERS Sec
A90: 2054 | B90: COLMORE I NC
A91: 2053 | B91: COLMORE J
A92: 2082 | B92: CONWAY JI NC
A93: 2464 | B93: COPPICE JI
A94: 3320 | B94: CORPUS CHRISTI RC JI
A95: 2055 | B95: COTTERIDGE JI NC
A96: 2299 | B96: COTTESBROOKE I NC
A97: 2226 | B97: COTTESBROOKE J
A98: 2191 | B98: COURT FARM JI
A99: 2060 | B99: CROMWELL JI NC
A100: 4129 | B100: DAME ELIZABETH CADBURY Sec (16+)
A101: 7035 | B101: DAME ELLEN PINSENT Spcl
A102: 5201 | B102: DEANERY ACADEMY
A103: 2284 | B103: DEYKIN AVENUE JI
A104: 2065 | B104: DORRINGTON ACADEMY
A105: 1802 | B105: EDITH CADBURY Nrsy
A106: 2454 | B106: ELMS FARM JI NC
A107: 3321 | B107: ENGLISH MARTYRS RC JI
A108: 2036 | B108: ERDINGTON HALL ACADEMY
A109: 5410 | B109: FAIRFAX ACAD Sec (16+)
A110: 2310 | B110: FAIRWAY ACADEMY
A111: 2294 | B111: FEATHERSTONE JI
A112: 1026 | B112: FEATHERSTONE Nrsy
A113: 2475 | B113: FIRS JI NC
A114: 2486 | B114: FORESTDALE JI NC
A115: 2437 | B115: FOUNDRY JI NC
A116: 2109 | B116: FOUR DWELLINGS ACADEMY
A117: 4005 | B117: FOUR DWELLINGS ACADEMY
A118: 3435 | B118: FOUR OAKS JI
A119: 7050 | B119: FOX HOLLIES Spcl
A120: 1006 | B120: GARRETTS GREEN Nrsy
A121: 5412 | B121: GEORGE DIXON ACAD Sec (16+)
A122: 2079 | B122: GEORGE DIXON JI
A123: 2081 | B123: GILBERTSTONE JI NC
A124: 2296 | B124: GLENMEAD JI
A125: 4013 | B125: GOLDEN HILLOCK ACADEMY
A126: 1015 | B126: GOODWAY Nrsy
A127: 2448 | B127: GOSSEY LANE JI NC
A128: 1022 | B128: GRACELANDS Nrsy
A129: 2450 | B129: GREAT BARR ACADEMY
A130: 5403 | B130: GREAT BARR Sec (16+)
A131: 2451 | B131: GREEN MEADOW JI
A132: 2085 | B132: GREENHOLM ACADEMY
A133: 4006 | B133: GREENWOOD ACADEMY
A134: 2086 | B134: GREET JI NC
A135: 2087 | B135: GRENDON JI NC
A136: 2138 | B136: GRESTONE ACADEMY
A137: 2466 | B137: GROVE JI NC
A138: 3316 | B138: GUARDIAN ANGELS RC JI
A139: 2091 | B139: GUNTER JI NC
A140: 5409 | B140: HALL GREEN ACAD Sec
A141: 2093 | B141: HALL GREEN I NC
A142: 2092 | B142: HALL GREEN J
A143: 7027 | B143: HALLMOOR Spcl
A144: 7006 | B144: HAMILTON Spcl
A145: 4240 | B145: HAMSTEAD HALL ACADEMY (16+)
A146: 5402 | B146: HANDSWORTH GRAMMAR Sec (16+)
A147: 4207 | B147: HANDSWORTH WOOD GIRLS ACADEMY
A148: 6910 | B148: HARBORNE HILL ACAD
A149: 2477 | B149: HARBORNE JI
A150: 3436 | B150: HARPER BELL PRIMARY JI NC
A151: 2121 | B151: HAWKESLEY CE ACADEMY
A152: 2099 | B152: HAWTHORN JI
A153: 6905 | B153: HEARTLANDS ACAD
A154: 2313 | B154: HEATH MOUNT JI
A155: 2309 | B155: HEATHFIELD JI NC
A156: 2455 | B156: HEATHLANDS JI NC
A157: 2101 | B157: HIGHFIELD JI
A158: 1010 | B158: HIGHFIELD Nrsy
A159: 2438 | B159: HIGHTERS HEATH JI
A160: 1021 | B160: HIGHTERS HEATH Nrsy
A161: 3429 | B161: HILL WEST ACADEMY
A162: 4012 | B162: HILLCREST ACADEMY
A163: 2434 | B163: HILLSTONE JI NC
A164: 2110 | B164: HOBMOOR ACADEMY
A165: 4015 | B165: HODGE HILL GIRLS Sec
A166: 3430 | B166: HODGE HILL JI
A167: 4201 | B167: HODGE HILL Sec
A168: 2429 | B168: HOLLAND HOUSE I NC
A169: 3411 | B169: HOLLY HILL I NC
A170: 2474 | B170: HOLLYFIELD JI
A171: 2288 | B171: HOLLYWOOD JI
A172: 4223 | B172: HOLTE Sec (16+)
A173: 3402 | B173: HOLY CROSS RC JI
A174: 3317 | B174: HOLY FAMILY RC JI NC
A175: 3327 | B175: HOLY SOULS RC JI
A176: 3303 | B176: HOLY TRINITY CE ACADEMY
A177: 4664 | B177: HOLY TRINITY RC Sec
A178: 4241 | B178: HOLYHEAD ACADEMY
A179: 7026 | B179: HUNTERS HILL Spcl
A180: 4244 | B180: INTERNATIONAL SCHOOL & COMM.COLLEGE Sec (16+)
A181: 1023 | B181: JAKEMAN Nrsy
A182: 7063 | B182: JAMES BRINDLEY Spcl
A183: 2015 | B183: JAMES WATT JI NC
A184: 2111 | B184: JERVOISE JI NC
A185: 4301 | B185: JOHN WILLMOTT Sec (16+)
A186: 3352 | B186: KING DAVID JI NC
A187: 5408 | B187: KING EDWARD VI ASTON ACAD Sec (16+)
A188: 5407 | B188: KING EDWARD VI CAMP HILL BOYS ACAD Sec (16+)
A189: 5406 | B189: KING EDWARD VI CAMP HILL GIRLS ACAD Sec (16+)
A190: 5405 | B190: KING EDWARD VI FIVE WAYS ACAD Sec (16+)
A191: 5404 | B191: KING EDWARD VI HANDSWORTH ACAD Sec (16+)
A192: 6906 | B192: KING EDWARD VI SHELDON HEATH ACADEMY
A193: 2005 | B193: KINGS HEATH JI NC
A194: 4063 | B194: KINGS HEATH Sec
A195: 5415 | B195: KINGS NORTON BOYS Sec (16+)
A196: 5414 | B196: KINGS NORTON GIRLS ACAD Sec (16+)
A197: 4001 | B197: KINGS NORTON HIGH ACADEMY
A198: 2118 | B198: KINGS NORTON JI
A199: 1016 | B199: KINGS NORTON Nrsy
A200: 2073 | B200: KINGS RISE ACADEMY
A201: 4330 | B201: KINGSBURY Sec
A202: 2115 | B202: KINGSLAND JI NC
... 232 more rows

Sheet Allocation (hidden)
F1: =IF(E14>0,"S","P") -> P
D8: School Budget Share Addition
D9: 2018/19 Free School Meals Supplementary Grant
D12: School Name: | F12: =DFES!F1 -> ST BENEDICT'S I NC
D13: DFE No: | F13: =DFES!E1 -> 2183
D16: School Budget Share Addition Allocation Analysis
J19: Oct 17 Total FSM number of pupils | K19: Oct 18 Total FSM number of pupils | L19: Change in FSM pupil numbers between 2017 and 2018
D20: DFE Determined Data | J20: =IF(H21="g","",(VLOOKUP($F13+3300000,'DFE Notification 18-19'!B:M,6,0))) -> 45 | K20: =IF($H$21="g","",(VLOOKUP($F13+3300000,'DFE Notification 18-19'!$B:$M,7,0))) -> 66 | L20: =IF($H$21="g","",(VLOOKUP($F13+3300000,'DFE Notification 18-19'!$B:$M,8,0))) -> 21
D21: DFE Determined Data Growing Schools ** | H21: =IFERROR(VLOOKUP(DFES!$E$1+3300000,'DFE Notification 18-19'!$B$2:$N$228,13,FALSE),"") -> 0 | J21: =IF($H21="g",(VLOOKUP($F13+3300000,'DFE Notification 18-19'!$B:$M,9,FALSE)),"") ->  | K21: =IF($H21="g",(VLOOKUP($F13+3300000,'DFE Notification 18-19'!$B:$M,10,FALSE)),"") ->  | L21: =IF($H21="g",(VLOOKUP($F13+3300000,'DFE Notification 18-19'!$B:$M,11,FALSE)),"") -> 
K22: Rate per FSM * | L22: 440
D24: Total School Budget Share - 2018/19 Free School Meals Supplementary Grant | L24: =VLOOKUP($F13+3300000,'DFE Notification 18-19'!B:M,12,0) -> 2640
D27: * The rate of £440 is only applied to positive changes in FSM pupil numbers. Reductions in FSM numbers receive no funding.
D31: ** Allocations for growing schools (those that are adding year groups) are based on the average FSM numbers per year group as set up in the published Free school meals supplementary grant guidance.
D33: NOTES:
D34: * Cheque Book Schools will receive a Payment for the above amount.
D35: * Non Cheque Schools should ensure the allocation is entered onto their School Financial System with an
D36: appropriate journal entry, in the 2018/19 financial year.
D38: The FSM supplementary grant provides funding for schools to help them meet the costs of providing extra free school meals, due to the roll out of universal credit, before the lagged funding system catches up.
D39: Further information about the 2018/19 Free School Meals Supplementary Grant is available from the DfE website here:
D40: https://www.gov.uk/government/publications/free-school-meals-supplementary-grant-2018-to-2019
D42: N.B For the FSM Supplementary Grant, the DfE have used the FSM factor value in the national
D43: funding formula (NFF) of £440 per pupil as schools are expected to pay for free school
D44: meals through their core funding, which is allocated to local authorities through the NFF.
D46: For all other enquires please e-mail: | G46: fairfunding@birmingham.gov.uk

Sheet DFES (hidden)
E1: 2183 | F1: =IF(ISNA(VLOOKUP($E$1,$A$10:$K$438,2,0)),0,VLOOKUP($E$1,$A$10:$K$438,2,0)) -> ST BENEDICT'S I NC
C7: 2018-2019FSM Supp
C9: ALLOCATIONS
A10: 1000 | B10: SELLY OAK Nrsy | C10: =IFERROR(VLOOKUP(A10+3300000,'DFE Notification 18-19'!B:M,12,0),0) -> 0
A11: 1001 | B11: BORDESLEY GREEN Nrsy | C11: =IFERROR(VLOOKUP(A11+3300000,'DFE Notification 18-19'!B:M,12,0),0) -> 0
A12: 1002 | B12: BREARLEY ST Nrsy | C12: =IFERROR(VLOOKUP(A12+3300000,'DFE Notification 18-19'!B:M,12,0),0) -> 0
A13: 1006 | B13: GARRETTS GREEN Nrsy | C13: =IFERROR(VLOOKUP(A13+3300000,'DFE Notification 18-19'!B:M,12,0),0) -> 0
A14: 1008 | B14: PERRY BEECHES Nrsy | C14: =IFERROR(VLOOKUP(A14+3300000,'DFE Notification 18-19'!B:M,12,0),0) -> 0
A15: 1009 | B15: ST THOMAS Nrsy | C15: =IFERROR(VLOOKUP(A15+3300000,'DFE Notification 18-19'!B:M,12,0),0) -> 0
A16: 1010 | B16: HIGHFIELD Nrsy | C16: =IFERROR(VLOOKUP(A16+3300000,'DFE Notification 18-19'!B:M,12,0),0) -> 0
A17: 1012 | B17: MARSH HILL Nrsy | C17: =IFERROR(VLOOKUP(A17+3300000,'DFE Notification 18-19'!B:M,12,0),0) -> 0
A18: 1014 | B18: WEST HEATH Nrsy | C18: =IFERROR(VLOOKUP(A18+3300000,'DFE Notification 18-19'!B:M,12,0),0) -> 0
A19: 1015 | B19: GOODWAY Nrsy | C19: =IFERROR(VLOOKUP(A19+3300000,'DFE Notification 18-19'!B:M,12,0),0) -> 0
A20: 1016 | B20: KINGS NORTON Nrsy | C20: =IFERROR(VLOOKUP(A20+3300000,'DFE Notification 18-19'!B:M,12,0),0) -> 0
A21: 1017 | B21: ALLENS CROFT Nrsy | C21: =IFERROR(VLOOKUP(A21+3300000,'DFE Notification 18-19'!B:M,12,0),0) -> 0
A22: 1018 | B22: RUBERY Nrsy | C22: =IFERROR(VLOOKUP(A22+3300000,'DFE Notification 18-19'!B:M,12,0),0) -> 0
A23: 1019 | B23: WASHWOOD HEATH Nrsy | C23: =IFERROR(VLOOKUP(A23+3300000,'DFE Notification 18-19'!B:M,12,0),0) -> 0
A24: 1020 | B24: WEOLEY CASTLE Nrsy | C24: =IFERROR(VLOOKUP(A24+3300000,'DFE Notification 18-19'!B:M,12,0),0) -> 0
A25: 1021 | B25: HIGHTERS HEATH Nrsy | C25: =IFERROR(VLOOKUP(A25+3300000,'DFE Notification 18-19'!B:M,12,0),0) -> 0
A26: 1022 | B26: GRACELANDS Nrsy | C26: =IFERROR(VLOOKUP(A26+3300000,'DFE Notification 18-19'!B:M,12,0),0) -> 0
A27: 1023 | B27: JAKEMAN Nrsy | C27: =IFERROR(VLOOKUP(A27+3300000,'DFE Notification 18-19'!B:M,12,0),0) -> 0
A28: 1024 | B28: LILLIAN DE LISSA Nrsy | C28: =IFERROR(VLOOKUP(A28+3300000,'DFE Notification 18-19'!B:M,12,0),0) -> 0
A29: 1025 | B29: BLOOMSBURY Nrsy | C29: =IFERROR(VLOOKUP(A29+3300000,'DFE Notification 18-19'!B:M,12,0),0) -> 0
A30: 1026 | B30: FEATHERSTONE Nrsy | C30: =IFERROR(VLOOKUP(A30+3300000,'DFE Notification 18-19'!B:M,12,0),0) -> 0
A31: 1027 | B31: ADDERLEY Nrsy | C31: =IFERROR(VLOOKUP(A31+3300000,'DFE Notification 18-19'!B:M,12,0),0) -> 0
A32: 1028 | B32: NEWTOWN Nrsy | C32: =IFERROR(VLOOKUP(A32+3300000,'DFE Notification 18-19'!B:M,12,0),0) -> 0
A33: 1038 | B33: SHENLEY FIELDS Nrsy | C33: =IFERROR(VLOOKUP(A33+3300000,'DFE Notification 18-19'!B:M,12,0),0) -> 0
A34: 1048 | B34: CASTLE VALE Nrsy | C34: =IFERROR(VLOOKUP(A34+3300000,'DFE Notification 18-19'!B:M,12,0),0) -> 0
A35: 1049 | B35: OSBORNE Nrsy | C35: =IFERROR(VLOOKUP(A35+3300000,'DFE Notification 18-19'!B:M,12,0),0) -> 0
A36: 1802 | B36: EDITH CADBURY Nrsy | C36: =IFERROR(VLOOKUP(A36+3300000,'DFE Notification 18-19'!B:M,12,0),0) -> 0
A37: 1100 | B37: City of Birmingham | C37: =IFERROR(VLOOKUP(A37+3300000,'DFE Notification 18-19'!B:M,12,0),0) -> 25960
A38: 2002 | B38: BORDESLEY VILLAGE JI NC | C38: =IFERROR(VLOOKUP(A38+3300000,'DFE Notification 18-19'!B:M,12,0),0) -> 0
A39: 2003 | B39: PRINCE ALBERT JI NC | C39: =IFERROR(VLOOKUP(A39+3300000,'DFE Notification 18-19'!B:M,12,0),0) -> 0
A40: 2004 | B40: MAPLEDENE JI NC | C40: =IFERROR(VLOOKUP(A40+3300000,'DFE Notification 18-19'!B:M,12,0),0) -> 880
A41: 2005 | B41: KINGS HEATH JI NC | C41: =IFERROR(VLOOKUP(A41+3300000,'DFE Notification 18-19'!B:M,12,0),0) -> 5280
A42: 2008 | B42: SHAW HILL JI NC | C42: =IFERROR(VLOOKUP(A42+3300000,'DFE Notification 18-19'!B:M,12,0),0) -> 440
A43: 2010 | B43: ADDERLEY JI | C43: =IFERROR(VLOOKUP(A43+3300000,'DFE Notification 18-19'!B:M,12,0),0) -> 0.01
A44: 2011 | B44: WHEELERS LANE JI NC | C44: =IFERROR(VLOOKUP(A44+3300000,'DFE Notification 18-19'!B:M,12,0),0) -> 17160
A45: 2014 | B45: BARFORD JI NC | C45: =IFERROR(VLOOKUP(A45+3300000,'DFE Notification 18-19'!B:M,12,0),0) -> 0.01
A46: 2015 | B46: JAMES WATT JI NC | C46: =IFERROR(VLOOKUP(A46+3300000,'DFE Notification 18-19'!B:M,12,0),0) -> 4400
A47: 2016 | B47: PERRY BEECHES J | C47: =IFERROR(VLOOKUP(A47+3300000,'DFE Notification 18-19'!B:M,12,0),0) -> 5280
A48: 2017 | B48: PERRY BEECHES I | C48: =IFERROR(VLOOKUP(A48+3300000,'DFE Notification 18-19'!B:M,12,0),0) -> 3960
A49: 2018 | B49: OAKS, THE JI NC | C49: =IFERROR(VLOOKUP(A49+3300000,'DFE Notification 18-19'!B:M,12,0),0) -> 13200
A50: 2019 | B50: WEST HEATH JI | C50: =IFERROR(VLOOKUP(A50+3300000,'DFE Notification 18-19'!B:M,12,0),0) -> 0.01
A51: 2020 | B51: ACOCKS GREEN ACADEMY | C51: =IFERROR(VLOOKUP(A51+3300000,'DFE Notification 18-19'!B:M,12,0),0) -> 0
A52: 2021 | B52: PAGANEL JI NC | C52: =IFERROR(VLOOKUP(A52+3300000,'DFE Notification 18-19'!B:M,12,0),0) -> 3080
A53: 2024 | B53: BIRCHES GREEN J | C53: =IFERROR(VLOOKUP(A53+3300000,'DFE Notification 18-19'!B:M,12,0),0) -> 880
A54: 2025 | B54: BIRCHES GREEN I NC | C54: =IFERROR(VLOOKUP(A54+3300000,'DFE Notification 18-19'!B:M,12,0),0) -> 880
A55: 2026 | B55: BANNERS GATE PRIMARY SCHOOL JI NC | C55: =IFERROR(VLOOKUP(A55+3300000,'DFE Notification 18-19'!B:M,12,0),0) -> 0.01
A56: 2030 | B56: BORDESLEY GREEN JI NC | C56: =IFERROR(VLOOKUP(A56+3300000,'DFE Notification 18-19'!B:M,12,0),0) -> 8360
A57: 2034 | B57: BROOKFIELDS JI NC | C57: =IFERROR(VLOOKUP(A57+3300000,'DFE Notification 18-19'!B:M,12,0),0) -> 0
A58: 2035 | B58: BROWNMEAD JI | C58: =IFERROR(VLOOKUP(A58+3300000,'DFE Notification 18-19'!B:M,12,0),0) -> 0
A59: 2036 | B59: ERDINGTON HALL ACADEMY | C59: =IFERROR(VLOOKUP(A59+3300000,'DFE Notification 18-19'!B:M,12,0),0) -> 0
A60: 2037 | B60: SLADE ACADEMY | C60: =IFERROR(VLOOKUP(A60+3300000,'DFE Notification 18-19'!B:M,12,0),0) -> 0
A61: 2038 | B61: NANSEN ACADEMY | C61: =IFERROR(VLOOKUP(A61+3300000,'DFE Notification 18-19'!B:M,12,0),0) -> 0
A62: 2039 | B62: CANTERBURY CROSS JI NC | C62: =IFERROR(VLOOKUP(A62+3300000,'DFE Notification 18-19'!B:M,12,0),0) -> 0
A63: 2040 | B63: CHERRY ORCHARD JI NC | C63: =IFERROR(VLOOKUP(A63+3300000,'DFE Notification 18-19'!B:M,12,0),0) -> 0.01
A64: 2041 | B64: ARK ROSE ACADEMY | C64: =IFERROR(VLOOKUP(A64+3300000,'DFE Notification 18-19'!B:M,12,0),0) -> 0
A65: 2047 | B65: CHILWELL CROFT ACADEMY | C65: =IFERROR(VLOOKUP(A65+3300000,'DFE Notification 18-19'!B:M,12,0),0) -> 0
A66: 2048 | B66: NECHELLS ACADEMY | C66: =IFERROR(VLOOKUP(A66+3300000,'DFE Notification 18-19'!B:M,12,0),0) -> 0
A67: 2051 | B67: COLMERS FARM J | C67: =IFERROR(VLOOKUP(A67+3300000,'DFE Notification 18-19'!B:M,12,0),0) -> 0
A68: 2052 | B68: COLMERS FARM I | C68: =IFERROR(VLOOKUP(A68+3300000,'DFE Notification 18-19'!B:M,12,0),0) -> 0.01
A69: 2053 | B69: COLMORE J | C69: =IFERROR(VLOOKUP(A69+3300000,'DFE Notification 18-19'!B:M,12,0),0) -> 1760
A70: 2054 | B70: COLMORE I NC | C70: =IFERROR(VLOOKUP(A70+3300000,'DFE Notification 18-19'!B:M,12,0),0) -> 3960
A71: 2055 | B71: COTTERIDGE JI NC | C71: =IFERROR(VLOOKUP(A71+3300000,'DFE Notification 18-19'!B:M,12,0),0) -> 18920
A72: 2056 | B72: ARK TINDAL ACADEMY | C72: =IFERROR(VLOOKUP(A72+3300000,'DFE Notification 18-19'!B:M,12,0),0) -> 0
A73: 2057 | B73: PERCY SHURMER ACADEMY | C73: =IFERROR(VLOOKUP(A73+3300000,'DFE Notification 18-19'!B:M,12,0),0) -> 0
A74: 2058 | B74: SHIRESTONE ACADEMY. | C74: =IFERROR(VLOOKUP(A74+3300000,'DFE Notification 18-19'!B:M,12,0),0) -> 0
A75: 2059 | B75: ST CLEMENT'S ACADEMY | C75: =IFERROR(VLOOKUP(A75+3300000,'DFE Notification 18-19'!B:M,12,0),0) -> 0
A76: 2060 | B76: CROMWELL JI NC | C76: =IFERROR(VLOOKUP(A76+3300000,'DFE Notification 18-19'!B:M,12,0),0) -> 0
A77: 2061 | B77: ST MICHAEL'S CE (B21) ACADEMY | C77: =IFERROR(VLOOKUP(A77+3300000,'DFE Notification 18-19'!B:M,12,0),0) -> 0
A78: 2062 | B78: ANDERTON PARK JI NC | C78: =IFERROR(VLOOKUP(A78+3300000,'DFE Notification 18-19'!B:M,12,0),0) -> 7040
A79: 2063 | B79: REGENTS PARK JI NC | C79: =IFERROR(VLOOKUP(A79+3300000,'DFE Notification 18-19'!B:M,12,0),0) -> 880
A80: 2064 | B80: OAKLANDS ACADEMY | C80: =IFERROR(VLOOKUP(A80+3300000,'DFE Notification 18-19'!B:M,12,0),0) -> 0
A81: 2065 | B81: DORRINGTON ACADEMY | C81: =IFERROR(VLOOKUP(A81+3300000,'DFE Notification 18-19'!B:M,12,0),0) -> 0
A82: 2067 | B82: SUMMERFIELD JI NC | C82: =IFERROR(VLOOKUP(A82+3300000,'DFE Notification 18-19'!B:M,12,0),0) -> 5280
A83: 2068 | B83: WARREN FARM ACADEMY | C83: =IFERROR(VLOOKUP(A83+3300000,'DFE Notification 18-19'!B:M,12,0),0) -> 0
A84: 2070 | B84: MONTGOMERY ACADEMY | C84: =IFERROR(VLOOKUP(A84+3300000,'DFE Notification 18-19'!B:M,12,0),0) -> 0
A85: 2071 | B85: ST JOHN'S CE (B16) ACADEMY | C85: =IFERROR(VLOOKUP(A85+3300000,'DFE Notification 18-19'!B:M,12,0),0) -> 0
A86: 2072 | B86: BILLESLEY ACADEMY | C86: =IFERROR(VLOOKUP(A86+3300000,'DFE Notification 18-19'!B:M,12,0),0) -> 0
A87: 2073 | B87: KINGS RISE ACADEMY | C87: =IFERROR(VLOOKUP(A87+3300000,'DFE Notification 18-19'!B:M,12,0),0) -> 0
A88: 2075 | B88: MANSFIELD GREEN ACADEMY | C88: =IFERROR(VLOOKUP(A88+3300000,'DFE Notification 18-19'!B:M,12,0),0) -> 0
A89: 2078 | B89: MOOR GREEN ACADEMY | C89: =IFERROR(VLOOKUP(A89+3300000,'DFE Notification 18-19'!B:M,12,0),0) -> 0
A90: 2079 | B90: GEORGE DIXON JI | C90: =IFERROR(VLOOKUP(A90+3300000,'DFE Notification 18-19'!B:M,12,0),0) -> 0.01
A91: 2080 | B91: REASIDE ACADEMY | C91: =IFERROR(VLOOKUP(A91+3300000,'DFE Notification 18-19'!B:M,12,0),0) -> 0
A92: 2081 | B92: GILBERTSTONE JI NC | C92: =IFERROR(VLOOKUP(A92+3300000,'DFE Notification 18-19'!B:M,12,0),0) -> 7480
A93: 2082 | B93: CONWAY JI NC | C93: =IFERROR(VLOOKUP(A93+3300000,'DFE Notification 18-19'!B:M,12,0),0) -> 0
A94: 2085 | B94: GREENHOLM ACADEMY | C94: =IFERROR(VLOOKUP(A94+3300000,'DFE Notification 18-19'!B:M,12,0),0) -> 0
A95: 2086 | B95: GREET JI NC | C95: =IFERROR(VLOOKUP(A95+3300000,'DFE Notification 18-19'!B:M,12,0),0) -> 0
A96: 2087 | B96: GRENDON JI NC | C96: =IFERROR(VLOOKUP(A96+3300000,'DFE Notification 18-19'!B:M,12,0),0) -> 6600
A97: 2091 | B97: GUNTER JI NC | C97: =IFERROR(VLOOKUP(A97+3300000,'DFE Notification 18-19'!B:M,12,0),0) -> 0.01
A98: 2092 | B98: HALL GREEN J | C98: =IFERROR(VLOOKUP(A98+3300000,'DFE Notification 18-19'!B:M,12,0),0) -> 0.01
A99: 2093 | B99: HALL GREEN I NC | C99: =IFERROR(VLOOKUP(A99+3300000,'DFE Notification 18-19'!B:M,12,0),0) -> 2200
A100: 2096 | B100: LEA FOREST ACADEMY | C100: =IFERROR(VLOOKUP(A100+3300000,'DFE Notification 18-19'!B:M,12,0),0) -> 0
A101: 2097 | B101: STORY WOOD SCHOOL AND CHILDREN'S CENTRE JI NC | C101: =IFERROR(VLOOKUP(A101+3300000,'DFE Notification 18-19'!B:M,12,0),0) -> 440
A102: 2098 | B102: TAME VALLEY ACADEMY | C102: =IFERROR(VLOOKUP(A102+3300000,'DFE Notification 18-19'!B:M,12,0),0) -> 0
A103: 2099 | B103: HAWTHORN JI | C103: =IFERROR(VLOOKUP(A103+3300000,'DFE Notification 18-19'!B:M,12,0),0) -> 8360
A104: 2100 | B104: Merritts Brook E-ACT Primary Academy NC | C104: =IFERROR(VLOOKUP(A104+3300000,'DFE Notification 18-19'!B:M,12,0),0) -> 0
A105: 2101 | B105: HIGHFIELD JI | C105: =IFERROR(VLOOKUP(A105+3300000,'DFE Notification 18-19'!B:M,12,0),0) -> 0
A106: 2102 | B106: BLAKENHALE I ACAD | C106: =IFERROR(VLOOKUP(A106+3300000,'DFE Notification 18-19'!B:M,12,0),0) -> 0
A107: 2103 | B107: OASIS ACADEMY SHORT HEATH | C107: =IFERROR(VLOOKUP(A107+3300000,'DFE Notification 18-19'!B:M,12,0),0) -> 0
A108: 2104 | B108: ST GEORGE'S CE (B16) ACADEMY | C108: =IFERROR(VLOOKUP(A108+3300000,'DFE Notification 18-19'!B:M,12,0),0) -> 0
A109: 2105 | B109: WOODVIEW ACADEMY | C109: =IFERROR(VLOOKUP(A109+3300000,'DFE Notification 18-19'!B:M,12,0),0) -> 0
A110: 2107 | B110: BLAKENHALE ACAD J | C110: =IFERROR(VLOOKUP(A110+3300000,'DFE Notification 18-19'!B:M,12,0),0) -> 0
A111: 2108 | B111: WARD END JI NC | C111: =IFERROR(VLOOKUP(A111+3300000,'DFE Notification 18-19'!B:M,12,0),0) -> 1320
A112: 2109 | B112: FOUR DWELLINGS ACADEMY | C112: =IFERROR(VLOOKUP(A112+3300000,'DFE Notification 18-19'!B:M,12,0),0) -> 0
A113: 2110 | B113: HOBMOOR ACADEMY | C113: =IFERROR(VLOOKUP(A113+3300000,'DFE Notification 18-19'!B:M,12,0),0) -> 0
A114: 2111 | B114: JERVOISE JI NC | C114: =IFERROR(VLOOKUP(A114+3300000,'DFE Notification 18-19'!B:M,12,0),0) -> 0
A115: 2115 | B115: KINGSLAND JI NC | C115: =IFERROR(VLOOKUP(A115+3300000,'DFE Notification 18-19'!B:M,12,0),0) -> 0.01
A116: 2117 | B116: MATTHEW BOULTON ACADEMY | C116: =IFERROR(VLOOKUP(A116+3300000,'DFE Notification 18-19'!B:M,12,0),0) -> 0
A117: 2118 | B117: KINGS NORTON JI | C117: =IFERROR(VLOOKUP(A117+3300000,'DFE Notification 18-19'!B:M,12,0),0) -> 440
A118: 2119 | B118: LAKEY LANE JI NC | C118: =IFERROR(VLOOKUP(A118+3300000,'DFE Notification 18-19'!B:M,12,0),0) -> 11000
A119: 2120 | B119: ST GEORGE'S CE (B19) ACADEMY | C119: =IFERROR(VLOOKUP(A119+3300000,'DFE Notification 18-19'!B:M,12,0),0) -> 0
A120: 2121 | B120: HAWKESLEY CE ACADEMY | C120: =IFERROR(VLOOKUP(A120+3300000,'DFE Notification 18-19'!B:M,12,0),0) -> 0
A121: 2122 | B121: YARNFIELD ACADEMY | C121: =IFERROR(VLOOKUP(A121+3300000,'DFE Notification 18-19'!B:M,12,0),0) -> 0
A122: 2126 | B122: TIVERTON ACADEMY | C122: =IFERROR(VLOOKUP(A122+3300000,'DFE Notification 18-19'!B:M,12,0),0) -> 0
A123: 2127 | B123: LOZELLS JI NC | C123: =IFERROR(VLOOKUP(A123+3300000,'DFE Notification 18-19'!B:M,12,0),0) -> 0.01
A124: 2128 | B124: LYNDON GREEN J | C124: =IFERROR(VLOOKUP(A124+3300000,'DFE Notification 18-19'!B:M,12,0),0) -> 6600
A125: 2129 | B125: LYNDON GREEN I | C125: =IFERROR(VLOOKUP(A125+3300000,'DFE Notification 18-19'!B:M,12,0),0) -> 5280
A126: 2132 | B126: MARLBOROUGH I NC | C126: =IFERROR(VLOOKUP(A126+3300000,'DFE Notification 18-19'!B:M,12,0),0) -> 0
A127: 2133 | B127: MARSH HILL JI | C127: =IFERROR(VLOOKUP(A127+3300000,'DFE Notification 18-19'!B:M,12,0),0) -> 5280
A128: 2134 | B128: CITY ROAD ACADEMY | C128: =IFERROR(VLOOKUP(A128+3300000,'DFE Notification 18-19'!B:M,12,0),0) -> 0
A129: 2136 | B129: WOODHOUSE ACADEMY | C129: =IFERROR(VLOOKUP(A129+3300000,'DFE Notification 18-19'!B:M,12,0),0) -> 0
A130: 2138 | B130: GRESTONE ACADEMY | C130: =IFERROR(VLOOKUP(A130+3300000,'DFE Notification 18-19'!B:M,12,0),0) -> 0
A131: 2142 | B131: NELSON JI NC | C131: =IFERROR(VLOOKUP(A131+3300000,'DFE Notification 18-19'!B:M,12,0),0) -> 0.01
A132: 2149 | B132: PAGET JI NC | C132: =IFERROR(VLOOKUP(A132+3300000,'DFE Notification 18-19'!B:M,12,0),0) -> 0.01
A133: 2150 | B133: PARK HILL JI NC | C133: =IFERROR(VLOOKUP(A133+3300000,'DFE Notification 18-19'!B:M,12,0),0) -> 4840
A134: 2153 | B134: ALLENS CROFT JI | C134: =IFERROR(VLOOKUP(A134+3300000,'DFE Notification 18-19'!B:M,12,0),0) -> 8800
A135: 2155 | B135: PRINCETHORPE J | C135: =IFERROR(VLOOKUP(A135+3300000,'DFE Notification 18-19'!B:M,12,0),0) -> 3080
A136: 2156 | B136: PRINCETHORPE I NC | C136: =IFERROR(VLOOKUP(A136+3300000,'DFE Notification 18-19'!B:M,12,0),0) -> 0
A137: 2157 | B137: RADDLEBARN JI NC | C137: =IFERROR(VLOOKUP(A137+3300000,'DFE Notification 18-19'!B:M,12,0),0) -> 440
A138: 2159 | B138: REDHILL JI NC | C138: =IFERROR(VLOOKUP(A138+3300000,'DFE Notification 18-19'!B:M,12,0),0) -> 0.01
A139: 2160 | B139: REDNAL HILL J | C139: =IFERROR(VLOOKUP(A139+3300000,'DFE Notification 18-19'!B:M,12,0),0) -> 7480
A140: 2161 | B140: REDNAL HILL I NC | C140: =IFERROR(VLOOKUP(A140+3300000,'DFE Notification 18-19'!B:M,12,0),0) -> 12320
A141: 2169 | B141: SEVERNE JI NC | C141: =IFERROR(VLOOKUP(A141+3300000,'DFE Notification 18-19'!B:M,12,0),0) -> 5280
A142: 2174 | B142: SLADEFIELD I | C142: =IFERROR(VLOOKUP(A142+3300000,'DFE Notification 18-19'!B:M,12,0),0) -> 15840
A143: 2176 | B143: SOMERVILLE JI NC | C143: =IFERROR(VLOOKUP(A143+3300000,'DFE Notification 18-19'!B:M,12,0),0) -> 10120
A144: 2178 | B144: STANVILLE JI NC | C144: =IFERROR(VLOOKUP(A144+3300000,'DFE Notification 18-19'!B:M,12,0),0) -> 3080
A145: 2179 | B145: STARBANK JI NC | C145: =IFERROR(VLOOKUP(A145+3300000,'DFE Notification 18-19'!B:M,12,0),0) -> 0.01
A146: 2180 | B146: YEW TREE JI NC | C146: =IFERROR(VLOOKUP(A146+3300000,'DFE Notification 18-19'!B:M,12,0),0) -> 0
A147: 2182 | B147: OLDKNOW ACADEMY | C147: =IFERROR(VLOOKUP(A147+3300000,'DFE Notification 18-19'!B:M,12,0),0) -> 0
A148: 2183 | B148: ST BENEDICT'S I NC | C148: =IFERROR(VLOOKUP(A148+3300000,'DFE Notification 18-19'!B:M,12,0),0) -> 2640
A149: 2184 | B149: STECHFORD JI NC | C149: =IFERROR(VLOOKUP(A149+3300000,'DFE Notification 18-19'!B:M,12,0),0) -> 12760
A150: 2185 | B150: COLEBOURNE JI | C150: =IFERROR(VLOOKUP(A150+3300000,'DFE Notification 18-19'!B:M,12,0),0) -> 0.01
A151: 2188 | B151: STIRCHLEY JI NC | C151: =IFERROR(VLOOKUP(A151+3300000,'DFE Notification 18-19'!B:M,12,0),0) -> 0
A152: 2189 | B152: LADYPOOL JI NC | C152: =IFERROR(VLOOKUP(A152+3300000,'DFE Notification 18-19'!B:M,12,0),0) -> 0.01
A153: 2190 | B153: SUNDRIDGE JI | C153: =IFERROR(VLOOKUP(A153+3300000,'DFE Notification 18-19'!B:M,12,0),0) -> 5280
A154: 2191 | B154: COURT FARM JI | C154: =IFERROR(VLOOKUP(A154+3300000,'DFE Notification 18-19'!B:M,12,0),0) -> 7040
A155: 2192 | B155: THORNTON JI | C155: =IFERROR(VLOOKUP(A155+3300000,'DFE Notification 18-19'!B:M,12,0),0) -> 0.01
A156: 2195 | B156: TIMBERLEY ACADEMY | C156: =IFERROR(VLOOKUP(A156+3300000,'DFE Notification 18-19'!B:M,12,0),0) -> 0
A157: 2225 | B157: WORLDS END J | C157: =IFERROR(VLOOKUP(A157+3300000,'DFE Notification 18-19'!B:M,12,0),0) -> 4840
A158: 2226 | B158: COTTESBROOKE J | C158: =IFERROR(VLOOKUP(A158+3300000,'DFE Notification 18-19'!B:M,12,0),0) -> 0
A159: 2227 | B159: YARDLEY WOOD JI NC | C159: =IFERROR(VLOOKUP(A159+3300000,'DFE Notification 18-19'!B:M,12,0),0) -> 9680
A160: 2231 | B160: YORKMEAD JI NC | C160: =IFERROR(VLOOKUP(A160+3300000,'DFE Notification 18-19'!B:M,12,0),0) -> 0.01
A161: 2236 | B161: BROADMEADOW J | C161: =IFERROR(VLOOKUP(A161+3300000,'DFE Notification 18-19'!B:M,12,0),0) -> 2200
A162: 2238 | B162: BROADMEADOW I NC | C162: =IFERROR(VLOOKUP(A162+3300000,'DFE Notification 18-19'!B:M,12,0),0) -> 440
A163: 2239 | B163: BELLFIELD I NC | C163: =IFERROR(VLOOKUP(A163+3300000,'DFE Notification 18-19'!B:M,12,0),0) -> 0.01
A164: 2241 | B164: BELLFIELD J | C164: =IFERROR(VLOOKUP(A164+3300000,'DFE Notification 18-19'!B:M,12,0),0) -> 11000
A165: 2245 | B165: WELSH HOUSE FARM JI NC | C165: =IFERROR(VLOOKUP(A165+3300000,'DFE Notification 18-19'!B:M,12,0),0) -> 0.01
A166: 2246 | B166: MEADOWS JI | C166: =IFERROR(VLOOKUP(A166+3300000,'DFE Notification 18-19'!B:M,12,0),0) -> 19360
A167: 2249 | B167: THE ORCHARDS ACADEMY | C167: =IFERROR(VLOOKUP(A167+3300000,'DFE Notification 18-19'!B:M,12,0),0) -> 0
A168: 2251 | B168: CHILCOTE JI NC | C168: =IFERROR(VLOOKUP(A168+3300000,'DFE Notification 18-19'!B:M,12,0),0) -> 3520
A169: 2254 | B169: BLAKESLEY HALL JI | C169: =IFERROR(VLOOKUP(A169+3300000,'DFE Notification 18-19'!B:M,12,0),0) -> 4840
A170: 2263 | B170: NORTHFIELD MANOR JI | C170: =IFERROR(VLOOKUP(A170+3300000,'DFE Notification 18-19'!B:M,12,0),0) -> 0
A171: 2272 | B171: CHIVENOR JI | C171: =IFERROR(VLOOKUP(A171+3300000,'DFE Notification 18-19'!B:M,12,0),0) -> 0
A172: 2273 | B172: TOPCLIFFE JI | C172: =IFERROR(VLOOKUP(A172+3300000,'DFE Notification 18-19'!B:M,12,0),0) -> 0
A173: 2276 | B173: WILKES GREEN I NC | C173: =IFERROR(VLOOKUP(A173+3300000,'DFE Notification 18-19'!B:M,12,0),0) -> 8800
A174: 2278 | B174: WOODGATE JI | C174: =IFERROR(VLOOKUP(A174+3300000,'DFE Notification 18-19'!B:M,12,0),0) -> 4400
A175: 2283 | B175: MARLBOROUGH J | C175: =IFERROR(VLOOKUP(A175+3300000,'DFE Notification 18-19'!B:M,12,0),0) -> 0
A176: 2284 | B176: DEYKIN AVENUE JI | C176: =IFERROR(VLOOKUP(A176+3300000,'DFE Notification 18-19'!B:M,12,0),0) -> 1760
A177: 2288 | B177: HOLLYWOOD JI | C177: =IFERROR(VLOOKUP(A177+3300000,'DFE Notification 18-19'!B:M,12,0),0) -> 440
A178: 2289 | B178: COFTON JI | C178: =IFERROR(VLOOKUP(A178+3300000,'DFE Notification 18-19'!B:M,12,0),0) -> 0.01
A179: 2293 | B179: WILKES GREEN J | C179: =IFERROR(VLOOKUP(A179+3300000,'DFE Notification 18-19'!B:M,12,0),0) -> 880
A180: 2294 | B180: FEATHERSTONE JI | C180: =IFERROR(VLOOKUP(A180+3300000,'DFE Notification 18-19'!B:M,12,0),0) -> 11000
A181: 2295 | B181: BROOKVALE ACADEMY | C181: =IFERROR(VLOOKUP(A181+3300000,'DFE Notification 18-19'!B:M,12,0),0) -> 0
A182: 2296 | B182: GLENMEAD JI | C182: =IFERROR(VLOOKUP(A182+3300000,'DFE Notification 18-19'!B:M,12,0),0) -> 440
A183: 2297 | B183: BIRCHFIELD JI NC | C183: =IFERROR(VLOOKUP(A183+3300000,'DFE Notification 18-19'!B:M,12,0),0) -> 0
A184: 2299 | B184: COTTESBROOKE I NC | C184: =IFERROR(VLOOKUP(A184+3300000,'DFE Notification 18-19'!B:M,12,0),0) -> 0
A185: 2300 | B185: ARDEN JI NC | C185: =IFERROR(VLOOKUP(A185+3300000,'DFE Notification 18-19'!B:M,12,0),0) -> 0.01
A186: 2305 | B186: CHANDOS JI NC | C186: =IFERROR(VLOOKUP(A186+3300000,'DFE Notification 18-19'!B:M,12,0),0) -> 0
A187: 2306 | B187: WATERMILL JI | C187: =IFERROR(VLOOKUP(A187+3300000,'DFE Notification 18-19'!B:M,12,0),0) -> 3520
A188: 2308 | B188: WELFORD JI NC | C188: =IFERROR(VLOOKUP(A188+3300000,'DFE Notification 18-19'!B:M,12,0),0) -> 6600
A189: 2309 | B189: HEATHFIELD JI NC | C189: =IFERROR(VLOOKUP(A189+3300000,'DFE Notification 18-19'!B:M,12,0),0) -> 0
A190: 2310 | B190: FAIRWAY ACADEMY | C190: =IFERROR(VLOOKUP(A190+3300000,'DFE Notification 18-19'!B:M,12,0),0) -> 0
A191: 2312 | B191: CHAD VALE JI | C191: =IFERROR(VLOOKUP(A191+3300000,'DFE Notification 18-19'!B:M,12,0),0) -> 2200
A192: 2313 | B192: HEATH MOUNT JI | C192: =IFERROR(VLOOKUP(A192+3300000,'DFE Notification 18-19'!B:M,12,0),0) -> 0.01
A193: 2314 | B193: WOODTHORPE JI | C193: =IFERROR(VLOOKUP(A193+3300000,'DFE Notification 18-19'!B:M,12,0),0) -> 0.01
A194: 2315 | B194: NONSUCH JI | C194: =IFERROR(VLOOKUP(A194+3300000,'DFE Notification 18-19'!B:M,12,0),0) -> 0
A195: 2317 | B195: WORLDS END I NC | C195: =IFERROR(VLOOKUP(A195+3300000,'DFE Notification 18-19'!B:M,12,0),0) -> 10120
A196: 2321 | B196: KITWELL JI NC | C196: =IFERROR(VLOOKUP(A196+3300000,'DFE Notification 18-19'!B:M,12,0),0) -> 2200
A197: 2401 | B197: BOLDMERE J | C197: =IFERROR(VLOOKUP(A197+3300000,'DFE Notification 18-19'!B:M,12,0),0) -> 1760
A198: 2402 | B198: BOLDMERE I NC | C198: =IFERROR(VLOOKUP(A198+3300000,'DFE Notification 18-19'!B:M,12,0),0) -> 1320
A199: 2406 | B199: MINWORTH JI | C199: =IFERROR(VLOOKUP(A199+3300000,'DFE Notification 18-19'!B:M,12,0),0) -> 5720
A200: 2408 | B200: TOWN J | C200: =IFERROR(VLOOKUP(A200+3300000,'DFE Notification 18-19'!B:M,12,0),0) -> 0
A201: 2412 | B201: WYLDE GREEN JI | C201: =IFERROR(VLOOKUP(A201+3300000,'DFE Notification 18-19'!B:M,12,0),0) -> 2640
A202: 2416 | B202: MOOR HALL JI | C202: =IFERROR(VLOOKUP(A202+3300000,'DFE Notification 18-19'!B:M,12,0),0) -> 1320
A203: 2420 | B203: MANEY HILL JI | C203: =IFERROR(VLOOKUP(A203+3300000,'DFE Notification 18-19'!B:M,12,0),0) -> 0.01
A204: 2425 | B204: PENNS JI | C204: =IFERROR(VLOOKUP(A204+3300000,'DFE Notification 18-19'!B:M,12,0),0) -> 2640
A205: 2429 | B205: HOLLAND HOUSE I NC | C205: =IFERROR(VLOOKUP(A205+3300000,'DFE Notification 18-19'!B:M,12,0),0) -> 2640
A206: 2434 | B206: HILLSTONE JI NC | C206: =IFERROR(VLOOKUP(A206+3300000,'DFE Notification 18-19'!B:M,12,0),0) -> 0
... 233 more rows

Sheet DFE Notification 18-19 (hidden)
B1: LAEstab | C1: School Name | D1: Phase of Education | E1: Oct 17 year group count | F1: Oct 18 year group count | G1: Oct 17 Total FSM number of pupils | H1: Oct 18 Total FSM number of pupils | I1: Difference in FSM pupils numbers | J1: Oct 17 Average per year group for growing schools only | K1: Oct 18 Average per year group for growing schools only | L1: Difference in average per year group for growing schools only | M1: Allocations
B2: 3301100 | C2: City of Birmingham School | D2: Not applicable | E2: 12 | F2: 11 | G2: 169 | H2: 228 | I2: 59 | M2: 25960
B3: 3302004 | C3: Mapledene Primary School | D3: Primary | E3: 7 | F3: 7 | G3: 69 | H3: 71 | I3: 2 | M3: 880
B4: 3302005 | C4: Kings Heath Primary School | D4: Primary | E4: 7 | F4: 7 | G4: 64 | H4: 76 | I4: 12 | M4: 5280
B5: 3302008 | C5: Shaw Hill Primary School | D5: Primary | E5: 7 | F5: 7 | G5: 108 | H5: 109 | I5: 1 | M5: 440
B6: 3302010 | C6: Adderley Primary School | D6: Primary | E6: 7 | F6: 7 | G6: 232 | H6: 183 | I6: -49 | M6: 0.01
B7: 3302011 | C7: Wheelers Lane Primary School | D7: Primary | E7: 7 | F7: 7 | G7: 85 | H7: 124 | I7: 39 | M7: 17160
B8: 3302014 | C8: Barford Primary School | D8: Primary | E8: 7 | F8: 7 | G8: 121 | H8: 121 | I8: 0 | M8: 0.01
B9: 3302015 | C9: James Watt Primary School | D9: Primary | E9: 7 | F9: 7 | G9: 128 | H9: 138 | I9: 10 | M9: 4400
B10: 3302016 | C10: Beeches Junior School | D10: Primary | E10: 4 | F10: 4 | G10: 54 | H10: 66 | I10: 12 | M10: 5280
B11: 3302017 | C11: Beeches Infant School | D11: Primary | E11: 3 | F11: 3 | G11: 48 | H11: 57 | I11: 9 | M11: 3960
B12: 3302018 | C12: The Oaks Primary School | D12: Primary | E12: 7 | F12: 7 | G12: 218 | H12: 248 | I12: 30 | M12: 13200
B13: 3302021 | C13: Paganel Primary School | D13: Primary | E13: 7 | F13: 7 | G13: 148 | H13: 155 | I13: 7 | M13: 3080
B14: 3302024 | C14: Birches Green Junior School | D14: Primary | E14: 4 | F14: 4 | G14: 85 | H14: 87 | I14: 2 | M14: 880
B15: 3302025 | C15: Birches Green Infant School | D15: Primary | E15: 3 | F15: 3 | G15: 83 | H15: 85 | I15: 2 | M15: 880
B16: 3302026 | C16: Banners Gate Primary School | D16: Primary | E16: 7 | F16: 7 | G16: 106 | H16: 91 | I16: -15 | M16: 0.01
B17: 3302030 | C17: Bordesley Green Primary School | D17: Primary | E17: 7 | F17: 7 | G17: 128 | H17: 147 | I17: 19 | M17: 8360
B18: 3302040 | C18: Cherry Orchard Primary School | D18: Primary | E18: 7 | F18: 7 | G18: 61 | H18: 59 | I18: -2 | M18: 0.01
B19: 3302052 | C19: Colmers Farm Primary School | D19: Primary | E19: 7 | F19: 7 | G19: 185 | H19: 184 | I19: -1 | M19: 0.01
B20: 3302053 | C20: Colmore Junior School | D20: Primary | E20: 4 | F20: 4 | G20: 46 | H20: 50 | I20: 4 | M20: 1760
B21: 3302054 | C21: Colmore Infant and Nursery School | D21: Primary | E21: 4 | F21: 3 | G21: 27 | H21: 36 | I21: 9 | M21: 3960
B22: 3302055 | C22: Cotteridge Primary School | D22: Primary | E22: 7 | F22: 7 | G22: 92 | H22: 135 | I22: 43 | M22: 18920
B23: 3302062 | C23: Anderton Park Primary School | D23: Primary | E23: 7 | F23: 7 | G23: 150 | H23: 166 | I23: 16 | M23: 7040
B24: 3302063 | C24: Regents Park Community Primary School | D24: Primary | E24: 7 | F24: 7 | G24: 172 | H24: 174 | I24: 2 | M24: 880
B25: 3302067 | C25: Summerfield Junior and Infant School | D25: Primary | E25: 7 | F25: 7 | G25: 132 | H25: 144 | I25: 12 | M25: 5280
B26: 3302079 | C26: George Dixon Primary School | D26: Primary | E26: 7 | F26: 7 | G26: 190 | H26: 181 | I26: -9 | M26: 0.01
B27: 3302081 | C27: Gilbertstone Primary School | D27: Primary | E27: 7 | F27: 7 | G27: 57 | H27: 74 | I27: 17 | M27: 7480
B28: 3302087 | C28: Grendon Junior and Infant School (NC) | D28: Primary | E28: 7 | F28: 7 | G28: 122 | H28: 137 | I28: 15 | M28: 6600
B29: 3302091 | C29: Gunter Primary School | D29: Primary | E29: 7 | F29: 7 | G29: 77 | H29: 74 | I29: -3 | M29: 0.01
B30: 3302092 | C30: Hall Green Junior School | D30: Primary | E30: 4 | F30: 4 | G30: 52 | H30: 52 | I30: 0 | M30: 0.01
B31: 3302097 | C31: Story Wood School | D31: Primary | E31: 7 | F31: 7 | G31: 71 | H31: 72 | I31: 1 | M31: 440
B32: 3302099 | C32: Hawthorn Primary School | D32: Primary | E32: 7 | F32: 7 | G32: 83 | H32: 102 | I32: 19 | M32: 8360
B33: 3302108 | C33: Ward End Primary School | D33: Primary | E33: 7 | F33: 7 | G33: 216 | H33: 219 | I33: 3 | M33: 1320
B34: 3302115 | C34: Kingsland Primary School (NC) | D34: Primary | E34: 7 | F34: 7 | G34: 125 | H34: 118 | I34: -7 | M34: 0.01
B35: 3302118 | C35: Kings Norton Junior and Infant School | D35: Primary | E35: 7 | F35: 7 | G35: 67 | H35: 68 | I35: 1 | M35: 440
B36: 3302119 | C36: Lakey Lane Junior and Infant School | D36: Primary | E36: 7 | F36: 7 | G36: 78 | H36: 103 | I36: 25 | M36: 11000
B37: 3302127 | C37: Lozells Junior and Infant School and Nursery | D37: Primary | E37: 7 | F37: 7 | G37: 136 | H37: 132 | I37: -4 | M37: 0.01
B38: 3302128 | C38: Lyndon Green Junior School | D38: Primary | E38: 4 | F38: 4 | G38: 44 | H38: 59 | I38: 15 | M38: 6600
B39: 3302129 | C39: Lyndon Green Infant School | D39: Primary | E39: 3 | F39: 3 | G39: 40 | H39: 52 | I39: 12 | M39: 5280
B40: 3302133 | C40: Marsh Hill Primary School | D40: Primary | E40: 7 | F40: 7 | G40: 109 | H40: 121 | I40: 12 | M40: 5280
B41: 3302142 | C41: Nelson Junior and Infant School | D41: Primary | E41: 7 | F41: 7 | G41: 160 | H41: 153 | I41: -7 | M41: 0.01
B42: 3302149 | C42: Paget Primary School | D42: Primary | E42: 7 | F42: 7 | G42: 153 | H42: 148 | I42: -5 | M42: 0.01
B43: 3302150 | C43: Park Hill Primary School | D43: Primary | E43: 7 | F43: 7 | G43: 144 | H43: 155 | I43: 11 | M43: 4840
B44: 3302153 | C44: Allens Croft Primary School | D44: Primary | E44: 7 | F44: 7 | G44: 126 | H44: 146 | I44: 20 | M44: 8800
B45: 3302155 | C45: Princethorpe Junior School | D45: Primary | E45: 4 | F45: 4 | G45: 102 | H45: 109 | I45: 7 | M45: 3080
B46: 3302157 | C46: Raddlebarn Primary School | D46: Primary | E46: 7 | F46: 7 | G46: 61 | H46: 62 | I46: 1 | M46: 440
B47: 3302159 | C47: Redhill Junior and Infant School | D47: Primary | E47: 7 | F47: 7 | G47: 51 | H47: 50 | I47: -1 | M47: 0.01
B48: 3302160 | C48: Rednal Hill Junior School | D48: Primary | E48: 4 | F48: 4 | G48: 106 | H48: 123 | I48: 17 | M48: 7480
B49: 3302161 | C49: Rednal Hill Infant School | D49: Primary | E49: 3 | F49: 3 | G49: 91 | H49: 119 | I49: 28 | M49: 12320
B50: 3302169 | C50: Severne Junior Infant and Nursery School | D50: Primary | E50: 7 | F50: 7 | G50: 126 | H50: 138 | I50: 12 | M50: 5280
B51: 3302174 | C51: Sladefield Infant School | D51: Primary | E51: 3 | F51: 3 | G51: 51 | H51: 87 | I51: 36 | M51: 15840
B52: 3302176 | C52: Somerville Primary (NC) School | D52: Primary | E52: 7 | F52: 7 | G52: 146 | H52: 169 | I52: 23 | M52: 10120
B53: 3302178 | C53: Stanville Primary School | D53: Primary | E53: 7 | F53: 7 | G53: 63 | H53: 70 | I53: 7 | M53: 3080
B54: 3302179 | C54: Starbank School** | D54: All through | E54: 11 | F54: 12 | G54: 700 | H54: 670 | I54: -30 | J54: 63.63636364 | K54: 55.83333333 | L54: -7.803030303 | M54: 0.01
B55: 3302183 | C55: St Benedict's Primary School** | D55: Primary | E55: 3 | F55: 4 | G55: 45 | H55: 66 | I55: 21 | J55: 15 | K55: 16.5 | L55: 1.5 | M55: 2640
B56: 3302184 | C56: Stechford Primary School | D56: Primary | E56: 7 | F56: 7 | G56: 61 | H56: 90 | I56: 29 | M56: 12760
B57: 3302185 | C57: Colebourne Primary School | D57: Primary | E57: 7 | F57: 7 | G57: 64 | H57: 62 | I57: -2 | M57: 0.01
B58: 3302189 | C58: Ladypool Primary School | D58: Primary | E58: 7 | F58: 7 | G58: 118 | H58: 118 | I58: 0 | M58: 0.01
B59: 3302190 | C59: Sundridge Primary School | D59: Primary | E59: 7 | F59: 7 | G59: 60 | H59: 72 | I59: 12 | M59: 5280
B60: 3302191 | C60: Court Farm Primary School | D60: Primary | E60: 7 | F60: 7 | G60: 90 | H60: 106 | I60: 16 | M60: 7040
B61: 3302192 | C61: Thornton Primary School | D61: Primary | E61: 6 | F61: 5 | G61: 173 | H61: 163 | I61: -10 | M61: 0.01
B62: 3302225 | C62: World's End Junior School | D62: Primary | E62: 4 | F62: 4 | G62: 86 | H62: 97 | I62: 11 | M62: 4840
B63: 3302227 | C63: Yardley Wood Community Primary School | D63: Primary | E63: 7 | F63: 7 | G63: 140 | H63: 162 | I63: 22 | M63: 9680
B64: 3302231 | C64: Yorkmead Junior and Infant School | D64: Primary | E64: 7 | F64: 7 | G64: 85 | H64: 82 | I64: -3 | M64: 0.01
B65: 3302236 | C65: Broadmeadow Junior School | D65: Primary | E65: 4 | F65: 4 | G65: 73 | H65: 78 | I65: 5 | M65: 2200
B66: 3302238 | C66: Broadmeadow Infant School | D66: Primary | E66: 3 | F66: 3 | G66: 61 | H66: 62 | I66: 1 | M66: 440
B67: 3302239 | C67: Bellfield Infant School (NC) | D67: Primary | E67: 3 | F67: 3 | G67: 101 | H67: 87 | I67: -14 | M67: 0.01
B68: 3302241 | C68: Bellfield Junior School | D68: Primary | E68: 4 | F68: 4 | G68: 90 | H68: 115 | I68: 25 | M68: 11000
B69: 3302245 | C69: Welsh House Farm Community School and Special Needs Resources Base | D69: Primary | E69: 7 | F69: 7 | G69: 112 | H69: 110 | I69: -2 | M69: 0.01
B70: 3302246 | C70: The Meadows Primary School | D70: Primary | E70: 7 | F70: 7 | G70: 143 | H70: 187 | I70: 44 | M70: 19360
B71: 3302251 | C71: Chilcote Primary School | D71: Primary | E71: 7 | F71: 7 | G71: 33 | H71: 41 | I71: 8 | M71: 3520
B72: 3302254 | C72: Blakesley Hall Primary School | D72: Primary | E72: 7 | F72: 7 | G72: 184 | H72: 195 | I72: 11 | M72: 4840
B73: 3302276 | C73: Wilkes Green Infant School (NC) | D73: Primary | E73: 3 | F73: 3 | G73: 53 | H73: 73 | I73: 20 | M73: 8800
B74: 3302278 | C74: Woodgate Primary School | D74: Primary | E74: 7 | F74: 7 | G74: 163 | H74: 173 | I74: 10 | M74: 4400
B75: 3302288 | C75: Hollywood Primary School | D75: Primary | E75: 7 | F75: 7 | G75: 81 | H75: 82 | I75: 1 | M75: 440
B76: 3302289 | C76: Cofton Primary School | D76: Primary | E76: 7 | F76: 7 | G76: 77 | H76: 75 | I76: -2 | M76: 0.01
B77: 3302293 | C77: Wilkes Green Junior School | D77: Primary | E77: 4 | F77: 4 | G77: 113 | H77: 115 | I77: 2 | M77: 880
B78: 3302296 | C78: Glenmead Primary School | D78: Primary | E78: 7 | F78: 7 | G78: 80 | H78: 81 | I78: 1 | M78: 440
B79: 3302300 | C79: Arden Primary School | D79: Primary | E79: 7 | F79: 7 | G79: 203 | H79: 194 | I79: -9 | M79: 0.01
B80: 3302306 | C80: Water Mill Primary School | D80: Primary | E80: 7 | F80: 7 | G80: 43 | H80: 51 | I80: 8 | M80: 3520
B81: 3302308 | C81: Welford Primary School | D81: Primary | E81: 7 | F81: 7 | G81: 102 | H81: 117 | I81: 15 | M81: 6600
B82: 3302312 | C82: Chad Vale Primary School | D82: Primary | E82: 7 | F82: 7 | G82: 32 | H82: 37 | I82: 5 | M82: 2200
B83: 3302313 | C83: Heath Mount Primary School | D83: Primary | E83: 7 | F83: 7 | G83: 182 | H83: 164 | I83: -18 | M83: 0.01
B84: 3302314 | C84: Woodthorpe Junior and Infant School | D84: Primary | E84: 7 | F84: 7 | G84: 26 | H84: 23 | I84: -3 | M84: 0.01
B85: 3302317 | C85: World's End Infant and Nursery School | D85: Primary | E85: 3 | F85: 3 | G85: 56 | H85: 79 | I85: 23 | M85: 10120
B86: 3302321 | C86: Kitwell Primary School and Nursery Class | D86: Primary | E86: 7 | F86: 7 | G86: 73 | H86: 78 | I86: 5 | M86: 2200
B87: 3302401 | C87: Boldmere Junior School | D87: Primary | E87: 4 | F87: 4 | G87: 18 | H87: 22 | I87: 4 | M87: 1760
B88: 3302402 | C88: Boldmere Infant School and Nursery | D88: Primary | E88: 3 | F88: 3 | G88: 15 | H88: 18 | I88: 3 | M88: 1320
B89: 3302412 | C89: Wylde Green Primary School | D89: Primary | E89: 7 | F89: 7 | G89: 48 | H89: 54 | I89: 6 | M89: 2640
B90: 3302416 | C90: Moor Hall Primary School | D90: Primary | E90: 7 | F90: 7 | G90: 6 | H90: 9 | I90: 3 | M90: 1320
B91: 3302420 | C91: Maney Hill Primary School | D91: Primary | E91: 7 | F91: 7 | G91: 5 | H91: 3 | I91: -2 | M91: 0.01
B92: 3302425 | C92: Penns Primary School | D92: Primary | E92: 7 | F92: 7 | G92: 10 | H92: 16 | I92: 6 | M92: 2640
B93: 3302429 | C93: Holland House Infant School and Nursery | D93: Primary | E93: 3 | F93: 3 | G93: 16 | H93: 22 | I93: 6 | M93: 2640
B94: 3302435 | C94: Benson Community School | D94: Primary | E94: 7 | F94: 7 | G94: 194 | H94: 196 | I94: 2 | M94: 880
B95: 3302436 | C95: Osborne Primary School | D95: Primary | E95: 7 | F95: 7 | G95: 111 | H95: 122 | I95: 11 | M95: 4840
B96: 3302438 | C96: Highters Heath Community School | D96: Primary | E96: 7 | F96: 7 | G96: 77 | H96: 86 | I96: 9 | M96: 3960
B97: 3302441 | C97: Kingsthorne Primary School | D97: Primary | E97: 7 | F97: 7 | G97: 154 | H97: 245 | I97: 91 | M97: 40040
B98: 3302445 | C98: Woodcock Hill Primary School | D98: Primary | E98: 7 | F98: 7 | G98: 97 | H98: 111 | I98: 14 | M98: 6160
B99: 3302454 | C99: Elms Farm Community Primary School | D99: Primary | E99: 7 | F99: 7 | G99: 163 | H99: 166 | I99: 3 | M99: 1320
B100: 3302456 | C100: Bells Farm Primary School | D100: Primary | E100: 7 | F100: 7 | G100: 86 | H100: 90 | I100: 4 | M100: 1760
B101: 3302457 | C101: Nelson Mandela School | D101: Primary | E101: 7 | F101: 7 | G101: 152 | H101: 153 | I101: 1 | M101: 440
B102: 3302462 | C102: Little Sutton Primary School | D102: Primary | E102: 7 | F102: 7 | G102: 16 | H102: 15 | I102: -1 | M102: 0.01
B103: 3302464 | C103: Coppice Primary School | D103: Primary | E103: 7 | F103: 7 | G103: 18 | H103: 23 | I103: 5 | M103: 2200
B104: 3302465 | C104: Calshot Primary School | D104: Primary | E104: 7 | F104: 7 | G104: 51 | H104: 56 | I104: 5 | M104: 2200
B105: 3302466 | C105: Grove School | D105: Primary | E105: 7 | F105: 7 | G105: 139 | H105: 164 | I105: 25 | M105: 11000
B106: 3302469 | C106: New Hall Primary School | D106: Primary | E106: 7 | F106: 7 | G106: 113 | H106: 132 | I106: 19 | M106: 8360
B107: 3302474 | C107: Hollyfield Primary School | D107: Primary | E107: 7 | F107: 7 | G107: 87 | H107: 101 | I107: 14 | M107: 6160
B108: 3302477 | C108: Harborne Primary School | D108: Primary | E108: 7 | F108: 7 | G108: 43 | H108: 43 | I108: 0 | M108: 0.01
B109: 3302478 | C109: Whitehouse Common Primary School | D109: Primary | E109: 7 | F109: 7 | G109: 8 | H109: 12 | I109: 4 | M109: 1760
B110: 3302479 | C110: Anglesey Primary School | D110: Primary | E110: 7 | F110: 7 | G110: 166 | H110: 188 | I110: 22 | M110: 9680
B111: 3302482 | C111: Wattville Primary School | D111: Primary | E111: 7 | F111: 7 | G111: 113 | H111: 145 | I111: 32 | M111: 14080
B112: 3302485 | C112: Yenton Primary School | D112: Primary | E112: 7 | F112: 7 | G112: 168 | H112: 199 | I112: 31 | M112: 13640
B113: 3302486 | C113: Forestdale Primary School | D113: Primary | E113: 7 | F113: 7 | G113: 84 | H113: 84 | I113: 0 | M113: 0.01
B114: 3303002 | C114: Christ Church CofE Controlled Primary School and Nursery | D114: Primary | E114: 7 | F114: 7 | G114: 68 | H114: 56 | I114: -12 | M114: 0.01
B115: 3303003 | C115: Moseley Church of England Primary School | D115: Primary | E115: 7 | F115: 7 | G115: 1 | H115: 2 | I115: 1 | M115: 440
B116: 3303010 | C116: St James Church of England Primary School, Handsworth | D116: Primary | E116: 7 | F116: 7 | G116: 129 | H116: 119 | I116: -10 | M116: 0.01
B117: 3303016 | C117: St Matthew's CofE Primary School | D117: Primary | E117: 7 | F117: 7 | G117: 74 | H117: 86 | I117: 12 | M117: 5280
B118: 3303019 | C118: St Saviour's C of E Primary School | D118: Primary | E118: 7 | F118: 7 | G118: 100 | H118: 131 | I118: 31 | M118: 13640
B119: 3303025 | C119: St Mary's Church of England Primary School | D119: Primary | E119: 7 | F119: 7 | G119: 70 | H119: 72 | I119: 2 | M119: 880
B120: 3303302 | C120: Saint Barnabas Church of England Primary School | D120: Primary | E120: 7 | F120: 7 | G120: 63 | H120: 75 | I120: 12 | M120: 5280
B121: 3303307 | C121: St Laurence Church Junior School | D121: Primary | E121: 4 | F121: 4 | G121: 43 | H121: 57 | I121: 14 | M121: 6160
B122: 3303310 | C122: St Vincent's Catholic Primary School | D122: Primary | E122: 7 | F122: 7 | G122: 78 | H122: 89 | I122: 11 | M122: 4840
B123: 3303316 | C123: Guardian Angels Catholic Primary School | D123: Primary | E123: 7 | F123: 7 | G123: 42 | H123: 50 | I123: 8 | M123: 3520
B124: 3303317 | C124: Holy Family Catholic Primary School | D124: Primary | E124: 7 | F124: 7 | G124: 45 | H124: 51 | I124: 6 | M124: 2640
B125: 3303318 | C125: Abbey Catholic Primary School | D125: Primary | E125: 7 | F125: 7 | G125: 60 | H125: 68 | I125: 8 | M125: 3520
B126: 3303319 | C126: Christ The King Catholic Primary School | D126: Primary | E126: 7 | F126: 7 | G126: 149 | H126: 148 | I126: -1 | M126: 0.01
B127: 3303320 | C127: Corpus Christi Catholic Primary School | D127: Primary | E127: 7 | F127: 7 | G127: 113 | H127: 129 | I127: 16 | M127: 7040
B128: 3303321 | C128: English Martyrs' Catholic Primary School | D128: Primary | E128: 7 | F128: 7 | G128: 60 | H128: 74 | I128: 14 | M128: 6160
B129: 3303322 | C129: Maryvale Catholic Primary School | D129: Primary | E129: 7 | F129: 7 | G129: 28 | H129: 41 | I129: 13 | M129: 5720
B130: 3303323 | C130: The Oratory Roman Catholic Primary School | D130: Primary | E130: 7 | F130: 7 | G130: 54 | H130: 52 | I130: -2 | M130: 0.01
B131: 3303325 | C131: The Rosary Catholic Primary School | D131: Primary | E131: 7 | F131: 7 | G131: 109 | H131: 102 | I131: -7 | M131: 0.01
B132: 3303327 | C132: Holy Souls Catholic Primary School | D132: Primary | E132: 7 | F132: 7 | G132: 102 | H132: 99 | I132: -3 | M132: 0.01
B133: 3303328 | C133: Our Lady of Lourdes Catholic Primary School (NC) | D133: Primary | E133: 7 | F133: 7 | G133: 40 | H133: 40 | I133: 0 | M133: 0.01
B134: 3303329 | C134: St Augustine's Catholic Primary School | D134: Primary | E134: 7 | F134: 7 | G134: 33 | H134: 39 | I134: 6 | M134: 2640
B135: 3303331 | C135: St Catherine of Siena Catholic Primary School | D135: Primary | E135: 7 | F135: 7 | G135: 44 | H135: 52 | I135: 8 | M135: 3520
B136: 3303335 | C136: St Anne's Catholic Primary School | D136: Primary | E136: 7 | F136: 7 | G136: 46 | H136: 61 | I136: 15 | M136: 6600
B137: 3303337 | C137: St Chad's Catholic Primary School | D137: Primary | E137: 7 | F137: 7 | G137: 96 | H137: 77 | I137: -19 | M137: 0.01
B138: 3303339 | C138: St Joseph's Catholic Primary School | D138: Primary | E138: 7 | F138: 7 | G138: 81 | H138: 88 | I138: 7 | M138: 3080
B139: 3303344 | C139: St Mary's Catholic Primary School | D139: Primary | E139: 7 | F139: 7 | G139: 32 | H139: 32 | I139: 0 | M139: 0.01
B140: 3303346 | C140: St Patrick's Catholic Primary School | D140: Primary | E140: 7 | F140: 7 | G140: 43 | H140: 60 | I140: 17 | M140: 7480
B141: 3303347 | C141: St Edmund's Catholic Primary School | D141: Primary | E141: 7 | F141: 7 | G141: 92 | H141: 98 | I141: 6 | M141: 2640
B142: 3303349 | C142: St Thomas More Catholic Primary School | D142: Primary | E142: 7 | F142: 7 | G142: 55 | H142: 64 | I142: 9 | M142: 3960
B143: 3303351 | C143: Our Lady and St Rose of Lima Catholic Primary School | D143: Primary | E143: 7 | F143: 7 | G143: 53 | H143: 51 | I143: -2 | M143: 0.01
B144: 3303352 | C144: King David Junior and Infant School | D144: Primary | E144: 7 | F144: 7 | G144: 23 | H144: 30 | I144: 7 | M144: 3080
B145: 3303353 | C145: Bournville Junior School | D145: Primary | E145: 4 | F145: 4 | G145: 36 | H145: 38 | I145: 2 | M145: 880
B146: 3303355 | C146: St Edward's Catholic Primary School | D146: Primary | E146: 7 | F146: 7 | G146: 57 | H146: 78 | I146: 21 | M146: 9240
B147: 3303357 | C147: Our Lady's Catholic Primary School | D147: Primary | E147: 7 | F147: 7 | G147: 46 | H147: 51 | I147: 5 | M147: 2200
B148: 3303359 | C148: St Wilfrid's Catholic Junior and Infant School | D148: Primary | E148: 7 | F148: 7 | G148: 94 | H148: 126 | I148: 32 | M148: 14080
B149: 3303360 | C149: St John Fisher Catholic Primary School | D149: Primary | E149: 7 | F149: 7 | G149: 16 | H149: 20 | I149: 4 | M149: 1760
B150: 3303361 | C150: St Margaret Mary RC Junior and Infant School | D150: Primary | E150: 7 | F150: 7 | G150: 67 | H150: 86 | I150: 19 | M150: 8360
B151: 3303365 | C151: St Teresa's Catholic Primary School | D151: Primary | E151: 7 | F151: 7 | G151: 14 | H151: 15 | I151: 1 | M151: 440
B152: 3303367 | C152: St Gerard's RC Junior and Infant School | D152: Primary | E152: 7 | F152: 7 | G152: 32 | H152: 30 | I152: -2 | M152: 0.01
B153: 3303371 | C153: St Laurence Church Infant School | D153: Primary | E153: 3 | F153: 3 | G153: 26 | H153: 36 | I153: 10 | M153: 4400
B154: 3303372 | C154: St Bernadette's Catholic Primary School | D154: Primary | E154: 7 | F154: 7 | G154: 135 | H154: 152 | I154: 17 | M154: 7480
B155: 3303375 | C155: St Bernard's Catholic Primary School | D155: Primary | E155: 7 | F155: 7 | G155: 75 | H155: 68 | I155: -7 | M155: 0.01
B156: 3303377 | C156: St Jude's Catholic Primary School | D156: Primary | E156: 7 | F156: 7 | G156: 89 | H156: 90 | I156: 1 | M156: 440
B157: 3303380 | C157: St Ambrose Barlow Catholic Primary School | D157: Primary | E157: 7 | F157: 7 | G157: 5 | H157: 8 | I157: 3 | M157: 1320
B158: 3303381 | C158: St Alban's Catholic Primary School | D158: Primary | E158: 7 | F158: 7 | G158: 27 | H158: 45 | I158: 18 | M158: 7920
B159: 3303382 | C159: St Martin de Porres Catholic Primary School | D159: Primary | E159: 7 | F159: 7 | G159: 43 | H159: 40 | I159: -3 | M159: 0.01
B160: 3303385 | C160: St Peter's Catholic Primary School | D160: Primary | E160: 7 | F160: 7 | G160: 40 | H160: 52 | I160: 12 | M160: 5280
B161: 3303386 | C161: St Cuthbert's RC Junior and Infant (NC) School | D161: Primary | E161: 7 | F161: 7 | G161: 62 | H161: 73 | I161: 11 | M161: 4840
B162: 3303406 | C162: St Clare's Catholic Primary School | D162: Primary | E162: 7 | F162: 7 | G162: 113 | H162: 126 | I162: 13 | M162: 5720
B163: 3303409 | C163: Sacred Heart Catholic School | D163: Primary | E163: 7 | F163: 7 | G163: 81 | H163: 98 | I163: 17 | M163: 7480
B164: 3303410 | C164: St John and Monica Catholic Primary School | D164: Primary | E164: 7 | F164: 7 | G164: 73 | H164: 73 | I164: 0 | M164: 0.01
B165: 3303411 | C165: Holly Hill Methodist CofE Infant School | D165: Primary | E165: 3 | F165: 3 | G165: 92 | H165: 102 | I165: 10 | M165: 4400
B166: 3303421 | C166: Yardley Primary School | D166: Primary | E166: 7 | F166: 7 | G166: 163 | H166: 188 | I166: 25 | M166: 11000
B167: 3303428 | C167: St Peters CofE Primary School | D167: Primary | E167: 7 | F167: 7 | G167: 53 | H167: 62 | I167: 9 | M167: 3960
B168: 3303431 | C168: New Oscott Primary School | D168: Primary | E168: 7 | F168: 7 | G168: 46 | H168: 60 | I168: 14 | M168: 6160
B169: 3303432 | C169: Clifton Primary School | D169: Primary | E169: 7 | F169: 7 | G169: 266 | H169: 256 | I169: -10 | M169: 0.01
B170: 3303435 | C170: Four Oaks Primary School | D170: Primary | E170: 7 | F170: 7 | G170: 15 | H170: 17 | I170: 2 | M170: 880
B171: 3303436 | C171: Harper Bell Seventh-day Adventist School | D171: Primary | E171: 7 | F171: 7 | G171: 42 | H171: 37 | I171: -5 | M171: 0.01
B172: 3304015 | C172: Hodge Hill Girls' School | D172: Secondary | E172: 5 | F172: 5 | G172: 114 | H172: 134 | I172: 20 | M172: 8800
B173: 3304063 | C173: Kings Heath Boys | D173: Secondary | E173: 5 | F173: 5 | G173: 138 | H173: 158 | I173: 20 | M173: 8800
B174: 3304173 | C174: Queensbridge School | D174: Secondary | E174: 5 | F174: 5 | G174: 162 | H174: 172 | I174: 10 | M174: 4400
B175: 3304187 | C175: Turves Green Girls' School | D175: Secondary | E175: 5 | F175: 5 | G175: 152 | H175: 186 | I175: 34 | M175: 14960
B176: 3304188 | C176: Turves Green Boys' School | D176: Secondary | E176: 5 | F176: 5 | G176: 189 | H176: 195 | I176: 6 | M176: 2640
B177: 3304193 | C177: Wheelers Lane Technology College | D177: Secondary | E177: 5 | F177: 5 | G177: 102 | H177: 115 | I177: 13 | M177: 5720
B178: 3304201 | C178: Hodge Hill College | D178: Secondary | E178: 5 | F178: 5 | G178: 419 | H178: 317 | I178: -102 | M178: 0.01
B179: 3304237 | C179: Swanshurst School | D179: Secondary | E179: 5 | F179: 5 | G179: 421 | H179: 404 | I179: -17 | M179: 0.01
B180: 3304333 | C180: Balaam Wood School | D180: Secondary | E180: 5 | F180: 5 | G180: 167 | H180: 178 | I180: 11 | M180: 4840
B181: 3304334 | C181: Al-Hijrah School | D181: All through | E181: 12 | F181: 12 | G181: 132 | H181: 155 | I181: 23 | M181: 10120
B182: 3304606 | C182: St Paul's School for Girls | D182: Secondary | E182: 5 | F182: 5 | G182: 148 | H182: 152 | I182: 4 | M182: 1760
B183: 3304625 | C183: St John Wall Catholic School | D183: Secondary | E183: 5 | F183: 5 | G183: 157 | H183: 190 | I183: 33 | M183: 14520
B184: 3304801 | C184: Cardinal Wiseman Catholic School | D184: Secondary | E184: 5 | F184: 5 | G184: 253 | H184: 239 | I184: -14 | M184: 0.01
B185: 3304804 | C185: Archbishop Ilsley Catholic School | D185: Secondary | E185: 5 | F185: 5 | G185: 241 | H185: 265 | I185: 24 | M185: 10560
B186: 3305202 | C186: Walmley Junior School | D186: Primary | E186: 4 | F186: 4 | G186: 13 | H186: 17 | I186: 4 | M186: 1760
B187: 3305203 | C187: Walmley Infant School | D187: Primary | E187: 3 | F187: 3 | G187: 1 | H187: 1 | I187: 0 | M187: 0.01
B188: 3305413 | C188: Bishop Challoner Catholic College | D188: Secondary | E188: 5 | F188: 5 | G188: 146 | H188: 166 | I188: 20 | M188: 8800
B189: 3305415 | C189: King's Norton Boys' School | D189: Secondary | E189: 5 | F189: 5 | G189: 77 | H189: 89 | I189: 12 | M189: 5280
B190: 3305949 | C190: Al-Furqan Primary School | D190: Primary | E190: 7 | F190: 7 | G190: 125 | H190: 108 | I190: -17 | M190: 0.01
B191: 3307006 | C191: Hamilton School | D191: Not applicable | E191: 7 | F191: 7 | G191: 60 | H191: 66 | I191: 6 | M191: 2640
B192: 3307009 | C192: Victoria School | D192: Not applicable | E192: 12 | F192: 12 | G192: 106 | H192: 94 | I192: -12 | M192: 0.01
B193: 3307012 | C193: Longwill A Primary School for Deaf Children | D193: Not applicable | E193: 7 | F193: 7 | G193: 25 | H193: 27 | I193: 2 | M193: 880
B194: 3307014 | C194: Uffculme School | D194: Not applicable | E194: 12 | F194: 12 | G194: 61 | H194: 57 | I194: -4 | M194: 0.01
B195: 3307016 | C195: Baskerville School | D195: Not applicable | E195: 5 | F195: 5 | G195: 37 | H195: 34 | I195: -3 | M195: 0.01
B196: 3307026 | C196: Hunters Hill College | D196: Not applicable | E196: 5 | F196: 5 | G196: 75 | H196: 69 | I196: -6 | M196: 0.01
B197: 3307030 | C197: Braidwood School for the Deaf | D197: Not applicable | E197: 5 | F197: 5 | G197: 26 | H197: 29 | I197: 3 | M197: 1320
B198: 3307033 | C198: Selly Oak Trust School | D198: Not applicable | E198: 5 | F198: 5 | G198: 148 | H198: 143 | I198: -5 | M198: 0.01
B199: 3307034 | C199: Priestley Smith School | D199: Not applicable | E199: 12 | F199: 12 | G199: 20 | H199: 24 | I199: 4 | M199: 1760
B200: 3307035 | C200: The Dame Ellen Pinsent School | D200: Not applicable | E200: 7 | F200: 7 | G200: 55 | H200: 62 | I200: 7 | M200: 3080
... 29 more rows

Sheet DFE Notification 17-18 (hidden)
D1: Y7 catch-up premium for financial year 2017 to 2018
D2: State-funded maintained schools, academies, maintained special schools, special academies, pupil referral units (PRU) and alternative provisions(AP) academies
D3: By school
D4: Please note : for schools with no pupils in Year 7 in October 2016 we have used local authority proportion of eligible pupils in 2015-2016 as shown in column N. This percentage is multiplied by the 2017-2018 year 7 cohort and the 2015-16 per pupil rate of £500.
D5: This is the sum of all eligible pupils in the local authority in 2015-16 divided by the sum of pupils in Year 7 in the local authority in October 2016, excluding pupils in schools that did not receive funding in 2016-2016 (ie had no eligible pupils in 2015-2016).
D7: (1) Status as at January 2018
D8: (2) number of pupils in Year 7 ( or aged 11 in Year group X) from the Oct 2016 schools census
D9: (3) number of pupils in Year 7 ( or aged 11 in Year group X) from the Oct 2017 schools census
B10: LA Name | C10: URN | F10: LAestab | G10: Current Establishment Name | H10: Type Of Establishment | I10: Establishment Type Group(2) | J10: Phase Of Education | K10: 2015-2016 Year 7 Cohort(3) | L10: 2016-2017 Year 7 Cohort(4) | M10: % Change in Cohort between 2015 and 2016 | N10: Funding in 2015-2016 | O10: 2015-2016 LA proportion | P10: 2016-2017 Funding
B12: LA Number | C12: LA Name | D12: URN | F12: LAestab | G12: Current Establishment Name | H12: Type Of Establishment | I12: Establishment Type Group(1) | J12: Phase of Education | K12: 2016-2017 Year 7 Cohort(2) | L12: 2017-2018 Year 7 Cohort(3) | M12: % Change in Cohort between 2015-2016 and 2017-2018 | N12: Funding in 2016-2017 | O12: 2015-2016 LA proportion of eligible pupils | P12: 2017-2018 Funding
B13: 330 | C13: Birmingham | D13: 103146 | E13: =F13-3300000 -> 1100 | F13: 3301100 | G13: City of Birmingham School | H13: Pupil referral unit | I13: LA maintained schools | J13: Not applicable | K13: 0 | L13: 3 | N13: 0 | O13: 0.2089777143 | P13: 313
B14: 330 | C14: Birmingham | D14: 103258 | E14: 2179 | F14: 3302179 | G14: Starbank School | H14: Community school | I14: LA maintained schools | J14: All through | K14: 179 | L14: 182 | M14: 0.01675977654 | N14: 19646 | P14: 19975
B15: 330 | C15: Birmingham | D15: 103483 | E15: 4015 | F15: 3304015 | G15: Hodge Hill Girls' School | H15: Community school | I15: LA maintained schools | J15: Secondary | K15: 150 | L15: 150 | M15: 0 | N15: 15500 | P15: 15500
B16: 330 | C16: Birmingham | D16: 103486 | E16: 4063 | F16: 3304063 | G16: Kings Heath Boys | H16: Community school | I16: LA maintained schools | J16: Secondary | K16: 117 | L16: 121 | M16: 0.03418803419 | N16: 8500 | P16: 8791
B17: 330 | C17: Birmingham | D17: 103493 | E17: 4115 | F17: 3304115 | G17: Bordesley Green Girls' School & Sixth Form | H17: Community school | I17: LA maintained schools | J17: Secondary | K17: 123 | L17: 118 | M17: -0.0406504065 | N17: 8860 | P17: 8500
B18: 330 | C18: Birmingham | D18: 103497 | E18: 4173 | F18: 3304173 | G18: Queensbridge School | H18: Foundation school | I18: LA maintained schools | J18: Secondary | K18: 176 | L18: 176 | M18: 0 | N18: 17286 | P18: 17286
B19: 330 | C19: Birmingham | D19: 103498 | E19: 4177 | F19: 3304177 | G19: Selly Park Technology College for Girls | H19: Community school | I19: LA maintained schools | J19: Secondary | K19: 135 | L19: 136 | M19: 0.007407407407 | N19: 13696 | P19: 13797
B20: 330 | C20: Birmingham | D20: 103499 | E20: 4187 | F20: 3304187 | G20: Turves Green Girls' School | H20: Foundation school | I20: LA maintained schools | J20: Secondary | K20: 103 | L20: 141 | M20: 0.3689320388 | N20: 11660 | P20: 15962
B21: 330 | C21: Birmingham | D21: 103500 | E21: 4188 | F21: 3304188 | G21: Turves Green Boys' School | H21: Community school | I21: LA maintained schools | J21: Secondary | K21: 134 | L21: 136 | M21: 0.01492537313 | N21: 18505 | P21: 18781
B22: 330 | C22: Birmingham | D22: 103501 | E22: 4193 | F22: 3304193 | G22: Wheelers Lane Technology College | H22: Community school | I22: LA maintained schools | J22: Secondary | K22: 128 | L22: 130 | M22: 0.015625 | N22: 11000 | P22: 11172
B23: 330 | C23: Birmingham | D23: 103503 | E23: 4201 | F23: 3304201 | G23: Hodge Hill College | H23: Community school | I23: LA maintained schools | J23: Secondary | K23: 247 | L23: 248 | M23: 0.004048582996 | N23: 30014 | P23: 30136
B24: 330 | C24: Birmingham | D24: 103509 | E24: 4223 | F24: 3304223 | G24: Holte School | H24: Community school | I24: LA maintained schools | J24: Secondary | K24: 192 | L24: 190 | M24: -0.01041666667 | N24: 20784 | P24: 20568
B25: 330 | C25: Birmingham | D25: 103514 | E25: 4237 | F25: 3304237 | G25: Swanshurst School | H25: Community school | I25: LA maintained schools | J25: Secondary | K25: 295 | L25: 304 | M25: 0.03050847458 | N25: 22577 | P25: 23266
B26: 330 | C26: Birmingham | D26: 103519 | E26: 4245 | F26: 3304245 | G26: Moseley School and Sixth Form | H26: Foundation school | I26: LA maintained schools | J26: Secondary | K26: 229 | L26: 246 | M26: 0.07423580786 | N26: 27035 | P26: 29042
B27: 330 | C27: Birmingham | D27: 103522 | E27: 4301 | F27: 3304301 | G27: John Willmott School | H27: Community school | I27: LA maintained schools | J27: Secondary | K27: 184 | L27: 189 | M27: 0.02717391304 | N27: 8492 | P27: 8723
B28: 330 | C28: Birmingham | D28: 103529 | E28: 4333 | F28: 3304333 | G28: Balaam Wood School | H28: Community school | I28: LA maintained schools | J28: Secondary | K28: 74 | L28: 68 | M28: -0.08108108108 | N28: 9388 | P28: 8627
B29: 330 | C29: Birmingham | D29: 103531 | E29: 4606 | F29: 3304606 | G29: St Paul's School for Girls | H29: Voluntary aided school | I29: LA maintained schools | J29: Secondary | K29: 166 | L29: 167 | M29: 0.006024096386 | N29: 9338 | P29: 9394
B30: 330 | C30: Birmingham | D30: 103534 | E30: 4625 | F30: 3304625 | G30: St John Wall Catholic School | H30: Voluntary aided school | I30: LA maintained schools | J30: Secondary | K30: 120 | L30: 116 | M30: -0.03333333333 | N30: 19831 | P30: 19170
B31: 330 | C31: Birmingham | D31: 103537 | E31: 4663 | F31: 3304663 | G31: St Edmund Campion Catholic School & Sixth Form Centre | H31: Voluntary aided school | I31: LA maintained schools | J31: Secondary | K31: 185 | L31: 182 | M31: -0.01621621622 | N31: 25639 | P31: 25223
B32: 330 | C32: Birmingham | D32: 103538 | E32: 4664 | F32: 3304664 | G32: Holy Trinity Catholic School | H32: Voluntary aided school | I32: LA maintained schools | J32: Secondary | K32: 115 | L32: 123 | M32: 0.06956521739 | N32: 13690 | P32: 14642
B33: 330 | C33: Birmingham | D33: 103539 | E33: 4801 | F33: 3304801 | G33: Cardinal Wiseman Catholic School | H33: Voluntary aided school | I33: LA maintained schools | J33: Secondary | K33: 119 | L33: 121 | M33: 0.01680672269 | N33: 10348 | P33: 10522
B34: 330 | C34: Birmingham | D34: 103541 | E34: 4804 | F34: 3304804 | G34: Archbishop Ilsley Catholic School | H34: Voluntary aided school | I34: LA maintained schools | J34: Secondary | K34: 210 | L34: 223 | M34: 0.0619047619 | N34: 20896 | P34: 22190
B35: 330 | C35: Birmingham | D35: 103560 | E35: 5413 | F35: 3305413 | G35: Bishop Challoner Catholic College | H35: Voluntary aided school | I35: LA maintained schools | J35: Secondary | K35: 190 | L35: 193 | M35: 0.01578947368 | N35: 6301 | P35: 6400
B36: 330 | C36: Birmingham | D36: 103562 | E36: 5415 | F36: 3305415 | G36: King's Norton Boys' School | H36: Foundation school | I36: LA maintained schools | J36: Secondary | K36: 121 | L36: 123 | M36: 0.01652892562 | N36: 10414 | P36: 10586
B37: 330 | C37: Birmingham | D37: 103563 | E37: 5416 | F37: 3305416 | G37: Colmers School and Sixth Form College | H37: Foundation school | I37: LA maintained schools | J37: Secondary | K37: 209 | L37: 211 | M37: 0.00956937799 | N37: 16421 | P37: 16578
B38: 330 | C38: Birmingham | D38: 103601 | E38: 7009 | F38: 3307009 | G38: Victoria School | H38: Community special school | I38: Special schools | J38: Not applicable | K38: 12 | L38: 17 | M38: 0.4166666667 | N38: 6000 | P38: 8500
B39: 330 | C39: Birmingham | D39: 103605 | E39: 7014 | F39: 3307014 | G39: Uffculme School | H39: Community special school | I39: Special schools | J39: Not applicable | K39: 14 | L39: 20 | M39: 0.4285714286 | N39: 6125 | P39: 8750
B40: 330 | C40: Birmingham | D40: 103606 | E40: 7016 | F40: 3307016 | G40: Baskerville School | H40: Community special school | I40: Special schools | J40: Not applicable | K40: 17 | L40: 19 | M40: 0.1176470588 | N40: 7893 | P40: 8822
B41: 330 | C41: Birmingham | D41: 103609 | E41: 7026 | F41: 3307026 | G41: Hunters Hill College | H41: Community special school | I41: Special schools | J41: Not applicable | K41: 26 | L41: 27 | M41: 0.03846153846 | N41: 10739 | P41: 11152
B42: 330 | C42: Birmingham | D42: 103611 | E42: 7030 | F42: 3307030 | G42: Braidwood School for the Deaf | H42: Foundation special school | I42: Special schools | J42: Not applicable | K42: 5 | L42: 13 | M42: 1.6 | N42: 2500 | P42: 6500
B43: 330 | C43: Birmingham | D43: 103613 | E43: 7033 | F43: 3307033 | G43: Selly Oak Trust School | H43: Foundation special school | I43: Special schools | J43: Not applicable | K43: 57 | L43: 57 | M43: 0 | N43: 27164 | P43: 27164
B44: 330 | C44: Birmingham | D44: 103614 | E44: 7034 | F44: 3307034 | G44: Priestley Smith School | H44: Community special school | I44: Special schools | J44: Not applicable | K44: 6 | L44: 5 | M44: -0.1666666667 | N44: 2250 | P44: 1875
B45: 330 | C45: Birmingham | D45: 103615 | E45: 7035 | F45: 3307035 | G45: The Dame Ellen Pinsent School | H45: Community special school | I45: Special schools | J45: Not applicable | K45: 1 | L45: 0 | M45: -1 | N45: 104 | P45: 0
B46: 330 | C46: Birmingham | D46: 103616 | E46: 7036 | F46: 3307036 | G46: Queensbury School | H46: Community special school | I46: Special schools | J46: Not applicable | K46: 3 | L46: 26 | M46: 7.666666667 | N46: 1368 | P46: 11856
B47: 330 | C47: Birmingham | D47: 103619 | E47: 7040 | F47: 3307040 | G47: Mayfield School | H47: Community special school | I47: Special schools | J47: Not applicable | K47: 22 | L47: 32 | M47: 0.4545454545 | N47: 11000 | P47: 16000
B48: 330 | C48: Birmingham | D48: 103622 | E48: 7045 | F48: 3307045 | G48: The Pines Special School | H48: Community special school | I48: Special schools | J48: Not applicable | K48: 0 | L48: 13 | N48: 0 | O48: 0.2089777143 | P48: 1358
B49: 330 | C49: Birmingham | D49: 103625 | E49: 7050 | F49: 3307050 | G49: Fox Hollies School and Performing Arts College | H49: Community special school | I49: Special schools | J49: Not applicable | K49: 11 | L49: 13 | M49: 0.1818181818 | N49: 4950 | P49: 5850
B50: 330 | C50: Birmingham | D50: 103628 | E50: 7053 | F50: 3307053 | G50: Oscott Manor School | H50: Community special school | I50: Special schools | J50: Not applicable | K50: 16 | L50: 8 | M50: -0.5 | N50: 6400 | P50: 3200
B51: 330 | C51: Birmingham | D51: 103632 | E51: 7062 | F51: 3307062 | G51: Lindsworth School | H51: Community special school | I51: Special schools | J51: Not applicable | K51: 12 | L51: 18 | M51: 0.5 | N51: 4500 | P51: 6750
B52: 330 | C52: Birmingham | D52: 133306 | E52: 4334 | F52: 3304334 | G52: Al-Hijrah School | H52: Voluntary aided school | I52: LA maintained schools | J52: All through | K52: 58 | L52: 115 | M52: 0.9827586207 | N52: 5407 | P52: 10721
P53: 513642

Sheet DFE Notification 16-17 (hidden)
A1: Y7 catch-up premium for financial year 2016 to 2017
A2: State-funded maintained schools, academies, maintained special schools, special academies, pupil referral units (PRU) and alternative provisions(AP) academies
A3: By school
A4: Please note : for schools with no pupils in Year 7 in October 2015 we have used local authority proportion of eligible pupils in 2015-2016 as shown in column N. This is the sum of all eligible pupils in the local authority in 2015-16 divided by the sum of pupils in Year 7 in the local authority in October 2015, excluding pupils in schools that did not receive funding in 2015-16 (ie had no eligible pupils in 2015-2016).
A5: Shaded cells mean not applicable
A6: (1) Number of pupils in the LA as at Oct 2015 school census who did not achieve level 4 or above in maths or reading or both in their KS2 test in 2014-2015
A7: (2) Status as at January 2017
A8: (3) number of pupils in Year 7 ( or aged 11 in Year group X) from the Oct 2015 schools census | K8: LA Number | L8: LA Name | M8: 15-16 LA Cohort | N8: 15-16 LA Number of eligible pupils(1) | O8: 15-16 LA proportion
A9: (4) number of pupils in Year 7 ( or aged 11 in Year group X) from the Oct 2016 schools census | K9: 301 | L9: Barking and Dagenham | M9: 2588 | N9: 478 | O9: =N9/M9 -> 0.184698609
A11: LA Number | B11: LA Name | C11: URN | E11: LAestab | F11: Current Establishment Name | G11: Type Of Establishment | H11: Establishment Type Group(2) | I11: Phase Of Education | J11: 2015-2016 Year 7 Cohort(3) | K11: 2016-2017 Year 7 Cohort(4) | L11: % Change in Cohort between 2015 and 2016 | M11: Funding in 2015-2016 | N11: 2015-2016 LA proportion | O11: 2016-2017 Funding
A12: 330 | B12: Birmingham | C12: 143413 | D12: =E12-3300000 -> 2168 | E12: 3302168 | F12: Erdington Academy | G12: Academy Sponsor Led | H12: Academies | I12: Secondary | J12: 113 | K12: 149 | L12: =IF(J12=0,"",K12/J12-1) -> 0.3185840708 | M12: 22000 | O12: =ROUND(IF(ISNUMBER(L12),M12*L12+M12,N12*K12*500),0) -> 29009
A13: 330 | B13: Birmingham | C13: 103258 | D13: =E13-3300000 -> 2179 | E13: 3302179 | F13: Starbank School | G13: Community School | H13: LA maintained schools | I13: All Through | J13: 164 | K13: 179 | L13: 0.09146341463 | M13: 18000 | O13: =ROUND(IF(ISNUMBER(L13),M13*L13+M13,N13*K13*500),0) -> 19646 | P13: =VLOOKUP(D13,DFES!$A:$C,2,FALSE) -> STARBANK JI NC
A14: 330 | B14: Birmingham | C14: 137578 | D14: 4001 | E14: 3304001 | F14: Ark Kings Academy | G14: Academy Sponsor Led | H14: Academies | I14: Secondary | J14: 63 | K14: 114 | L14: 0.8095238095 | M14: 9500 | O14: =ROUND(IF(ISNUMBER(L14),M14*L14+M14,N14*K14*500),0) -> 17190
A15: 330 | B15: Birmingham | C15: 138200 | D15: 4002 | E15: 3304002 | F15: Perry Beeches II The Free School | G15: Free Schools | H15: Free Schools | I15: Secondary | J15: 113 | K15: 117 | L15: 0.03539823009 | M15: 11500 | O15: 11907
A16: 330 | B16: Birmingham | C16: 138586 | D16: 4004 | E16: 3304004 | F16: Nishkam High School | G16: Free Schools | H16: Free Schools | I16: Secondary | J16: 100 | K16: 118 | L16: 0.18 | M16: 8000 | O16: 9440
A17: 330 | B17: Birmingham | C17: 139047 | D17: 4005 | E17: 3304005 | F17: Four Dwellings Academy | G17: Academy Sponsor Led | H17: Academies | I17: Secondary | J17: 82 | K17: 74 | L17: -0.09756097561 | M17: 12500 | O17: 11280
A18: 330 | B18: Birmingham | C18: 139048 | D18: 4006 | E18: 3304006 | F18: Greenwood Academy | G18: Academy Sponsor Led | H18: Academies | I18: Secondary | J18: 164 | K18: 176 | L18: 0.07317073171 | M18: 21500 | O18: 23073
A19: 330 | B19: Birmingham | C19: 142219 | D19: 4009 | E19: 3304009 | F19: Waverley School | G19: Academy Converter | H19: Academies | I19: All Through | J19: 184 | K19: 193 | L19: 0.04891304348 | M19: 21000 | O19: 22027
A20: 330 | B20: Birmingham | C20: 139797 | D20: 4011 | E20: 3304011 | F20: Perry Beeches III the Free School | G20: Free Schools | H20: Free Schools | I20: Secondary | J20: 103 | K20: 96 | L20: -0.06796116505 | M20: 11000 | O20: 10252
A21: 330 | B21: Birmingham | C21: 137346 | D21: 4012 | E21: 3304012 | F21: Hillcrest School A Specialist Maths and Computing College and Sixth Form Centre | G21: Academy Converter | H21: Academies | I21: Secondary | J21: 85 | K21: 83 | L21: -0.02352941176 | M21: 10000 | O21: 9765
A22: 330 | B22: Birmingham | C22: 140014 | D22: 4013 | E22: 3304013 | F22: Ark Boulton Academy | G22: Academy Sponsor Led | H22: Academies | I22: Secondary | J22: 175 | K22: 179 | L22: 0.02285714286 | M22: 18000 | O22: 18411
A23: 330 | B23: Birmingham | C23: 140863 | D23: 4014 | E23: 3304014 | F23: The University of Birmingham School | G23: Free Schools | H23: Free Schools | I23: Secondary | J23: 149 | K23: 149 | L23: 0 | M23: 8000 | O23: 8000
A24: 330 | B24: Birmingham | C24: 103483 | D24: 4015 | E24: 3304015 | F24: Hodge Hill Girls' School | G24: Community School | H24: LA maintained schools | I24: Secondary | J24: 150 | K24: 150 | L24: 0 | M24: 15500 | O24: 15500 | P24: =VLOOKUP(D24,DFES!$A:$C,2,FALSE) -> HODGE HILL GIRLS Sec
A25: 330 | B25: Birmingham | C25: 141003 | D25: 4016 | E25: 3304016 | F25: Perry Beeches IV - The Free School | G25: Free Schools | H25: Free Schools | I25: Secondary | J25: 116 | K25: 115 | L25: -0.008620689655 | M25: 11000 | O25: 10905
A26: 330 | B26: Birmingham | C26: 141318 | D26: 4017 | E26: 3304017 | F26: Bournville School | G26: Academy Sponsor Led | H26: Academies | I26: All Through | J26: 123 | K26: 148 | L26: 0.2032520325 | M26: 11500 | O26: 13837
A27: 330 | B27: Birmingham | C27: 141668 | D27: 4018 | E27: 3304018 | F27: Saltley Academy | G27: Academy Sponsor Led | H27: Academies | I27: Secondary | J27: 209 | K27: 210 | L27: 0.004784688995 | M27: 27500 | O27: 27632
A28: 330 | B28: Birmingham | C28: 141752 | D28: 4019 | E28: 3304019 | F28: Perry Beeches V - The All Through Family School | G28: Free Schools | H28: Free Schools | I28: All Through | J28: 142 | K28: 114 | L28: -0.1971830986 | M28: 11000 | O28: 8831
A29: 330 | B29: Birmingham | C29: 141943 | D29: 4020 | E29: 3304020 | F29: King Solomon International Business School | G29: Free Schools | H29: Free Schools | I29: All Through | J29: 93 | K29: 96 | L29: 0.03225806452 | M29: 8500 | O29: 8774
A30: 330 | B30: Birmingham | C30: 141969 | D30: 4021 | E30: 3304021 | F30: Eden Boys' School, Birmingham | G30: Free Schools | H30: Free Schools | I30: Secondary | J30: 100 | K30: 100 | L30: 0 | M30: 8500 | O30: 8500
A31: 330 | B31: Birmingham | C31: 142388 | D31: 4022 | E31: 3304022 | F31: Cockshut Hill Technology College | G31: Academy Sponsor Led | H31: Academies | I31: Secondary | J31: 193 | K31: 195 | L31: 0.0103626943 | M31: 29000 | O31: 29301
A32: 330 | B32: Birmingham | C32: 139157 | D32: 4057 | E32: 3304057 | F32: Lordswood Boys' School | G32: Academy Converter | H32: Academies | I32: Secondary | J32: 44 | K32: 66 | L32: 0.5 | M32: 7000 | O32: 10500
A33: 330 | B33: Birmingham | C33: 136592 | D33: 4060 | E33: 3304060 | F33: Lordswood Girls' School and Sixth Form Centre | G33: Academy Converter | H33: Academies | I33: Secondary | J33: 131 | K33: 131 | L33: 0 | M33: 6500 | O33: 6500
A34: 330 | B34: Birmingham | C34: 103486 | D34: 4063 | E34: 3304063 | F34: Kings Heath Boys | G34: Community School | H34: LA maintained schools | I34: Secondary | J34: 117 | K34: 117 | L34: 0 | M34: 8500 | O34: 8500 | P34: =VLOOKUP(D34,DFES!$A:$C,2,FALSE) -> KINGS HEATH Sec
A35: 330 | B35: Birmingham | C35: 139888 | D35: 4084 | E35: 3304084 | F35: Washwood Heath Academy | G35: Academy Converter | H35: Academies | I35: Secondary | J35: 253 | K35: 268 | L35: 0.05928853755 | M35: 31500 | O35: 33368
A36: 330 | B36: Birmingham | C36: 136589 | D36: 4108 | E36: 3304108 | F36: Bartley Green School | G36: Academy Converter | H36: Academies | I36: Secondary | J36: 188 | K36: 183 | L36: -0.02659574468 | M36: 26000 | O36: 25309
A37: 330 | B37: Birmingham | C37: 138141 | D37: 4109 | E37: 3304109 | F37: Perry Beeches the Academy | G37: Academy Converter | H37: Academies | I37: Secondary | J37: 191 | K37: 187 | L37: -0.02094240838 | M37: 11000 | O37: 10770
A38: 330 | B38: Birmingham | C38: 103493 | D38: 4115 | E38: 3304115 | F38: Bordesley Green Girls' School & Sixth Form | G38: Community School | H38: LA maintained schools | I38: Secondary | J38: 118 | K38: 123 | L38: 0.04237288136 | M38: 8500 | O38: 8860 | P38: =VLOOKUP(D38,DFES!$A:$C,2,FALSE) -> BORDESLEY GREEN GIRLS Sec (16+)
A39: 330 | B39: Birmingham | C39: 143438 | D39: 4129 | E39: 3304129 | F39: Dame Elizabeth Cadbury Technology College | G39: Academy Converter | H39: Academies | I39: Secondary | J39: 127 | K39: 129 | L39: 0.0157480315 | M39: 9500 | O39: 9650
A40: 330 | B40: Birmingham | C40: 103497 | D40: 4173 | E40: 3304173 | F40: Queensbridge School | G40: Foundation School | H40: LA maintained schools | I40: Secondary | J40: 168 | K40: 176 | L40: 0.04761904762 | M40: 16500 | O40: 17286 | P40: =VLOOKUP(D40,DFES!$A:$C,2,FALSE) -> QUEENSBRIDGE Sec
A41: 330 | B41: Birmingham | C41: 103498 | D41: 4177 | E41: 3304177 | F41: Selly Park Technology College for Girls | G41: Community School | H41: LA maintained schools | I41: Secondary | J41: 138 | K41: 135 | L41: -0.02173913043 | M41: 14000 | O41: 13696 | P41: =VLOOKUP(D41,DFES!$A:$C,2,FALSE) -> SELLY PARK TECH COLLEGE FOR GIRLS Sec
A42: 330 | B42: Birmingham | C42: 103499 | D42: 4187 | E42: 3304187 | F42: Turves Green Girls' School | G42: Foundation School | H42: LA maintained schools | I42: Secondary | J42: 106 | K42: 103 | L42: -0.02830188679 | M42: 12000 | O42: 11660 | P42: =VLOOKUP(D42,DFES!$A:$C,2,FALSE) -> TURVES GREEN GIRLS Sec
A43: 330 | B43: Birmingham | C43: 103500 | D43: 4188 | E43: 3304188 | F43: Turves Green Boys' School | G43: Community School | H43: LA maintained schools | I43: Secondary | J43: 105 | K43: 134 | L43: 0.2761904762 | M43: 14500 | O43: 18505 | P43: =VLOOKUP(D43,DFES!$A:$C,2,FALSE) -> TURVES GREEN BOYS Sec
A44: 330 | B44: Birmingham | C44: 103501 | D44: 4193 | E44: 3304193 | F44: Wheelers Lane Technology College | G44: Community School | H44: LA maintained schools | I44: Secondary | J44: 128 | K44: 128 | L44: 0 | M44: 11000 | O44: 11000 | P44: =VLOOKUP(D44,DFES!$A:$C,2,FALSE) -> WHEELERS LANE Sec
A45: 330 | B45: Birmingham | C45: 103503 | D45: 4201 | E45: 3304201 | F45: Hodge Hill College | G45: Community School | H45: LA maintained schools | I45: Secondary | J45: 251 | K45: 247 | L45: -0.01593625498 | M45: 30500 | O45: 30014 | P45: =VLOOKUP(D45,DFES!$A:$C,2,FALSE) -> HODGE HILL Sec
A46: 330 | B46: Birmingham | C46: 138137 | D46: 4206 | E46: 3304206 | F46: Stockland Green School | G46: Academy Converter | H46: Academies | I46: Secondary | J46: 149 | K46: 155 | L46: 0.04026845638 | M46: 16500 | O46: 17164
A47: 330 | B47: Birmingham | C47: 138937 | D47: 4207 | E47: 3304207 | F47: Handsworth Wood Girls' Academy | G47: Academy Converter | H47: Academies | I47: Secondary | J47: 149 | K47: 159 | L47: 0.06711409396 | M47: 15500 | O47: 16540
A48: 330 | B48: Birmingham | C48: 136882 | D48: 4220 | E48: 3304220 | F48: Aston Manor Academy | G48: Academy Converter | H48: Academies | I48: Secondary | J48: 149 | K48: 152 | L48: 0.02013422819 | M48: 17000 | O48: 17342
A49: 330 | B49: Birmingham | C49: 103509 | D49: 4223 | E49: 3304223 | F49: Holte School | G49: Community School | H49: LA maintained schools | I49: Secondary | J49: 194 | K49: 192 | L49: -0.01030927835 | M49: 21000 | O49: 20784 | P49: =VLOOKUP(D49,DFES!$A:$C,2,FALSE) -> HOLTE Sec (16+)
A50: 330 | B50: Birmingham | C50: 139841 | D50: 4227 | E50: 3304227 | F50: Broadway Academy | G50: Academy Converter | H50: Academies | I50: Secondary | J50: 210 | K50: 209 | L50: -0.004761904762 | M50: 23000 | O50: 22890
A51: 330 | B51: Birmingham | C51: 103514 | D51: 4237 | E51: 3304237 | F51: Swanshurst School | G51: Community School | H51: LA maintained schools | I51: Secondary | J51: 294 | K51: 295 | L51: 0.003401360544 | M51: 22500 | O51: 22577 | P51: =VLOOKUP(D51,DFES!$A:$C,2,FALSE) -> SWANSHURST Sec (16+)
A52: 330 | B52: Birmingham | C52: 139746 | D52: 4240 | E52: 3304240 | F52: Hamstead Hall Academy | G52: Academy Converter | H52: Academies | I52: Secondary | J52: 187 | K52: 185 | L52: -0.01069518717 | M52: 25000 | O52: 24733
A53: 330 | B53: Birmingham | C53: 137034 | D53: 4241 | E53: 3304241 | F53: Holyhead School | G53: Academy Converter | H53: Academies | I53: Secondary | J53: 211 | K53: 210 | L53: -0.004739336493 | M53: 19000 | O53: 18910
A54: 330 | B54: Birmingham | C54: 103518 | D54: 4244 | E54: 3304244 | F54: The International School | G54: Community School | H54: LA maintained schools | I54: Secondary | J54: 86 | K54: 96 | L54: 0.1162790698 | M54: 15000 | O54: 16744 | P54: =VLOOKUP(D54,DFES!$A:$C,2,FALSE) -> INTERNATIONAL SCHOOL & COMM.COLLEGE Sec (16+)
A55: 330 | B55: Birmingham | C55: 103519 | D55: 4245 | E55: 3304245 | F55: Moseley School | G55: Foundation School | H55: LA maintained schools | I55: Secondary | J55: 216 | K55: 229 | L55: 0.06018518519 | M55: 25500 | O55: 27035 | P55: =VLOOKUP(D55,DFES!$A:$C,2,FALSE) -> MOSELEY Sec (16+)
A56: 330 | B56: Birmingham | C56: 139994 | D56: 4246 | E56: 3304246 | F56: Yardleys School | G56: Academy Converter | H56: Academies | I56: Secondary | J56: 187 | K56: 185 | L56: -0.01069518717 | M56: 23000 | O56: 22754
A57: 330 | B57: Birmingham | C57: 136778 | D57: 4300 | E57: 3304300 | F57: Sutton Coldfield Grammar School for Girls | G57: Academy Converter | H57: Academies | I57: Secondary | J57: 178 | K57: 179 | L57: 0.005617977528 | M57: 0 | O57: 0
A58: 330 | B58: Birmingham | C58: 103522 | D58: 4301 | E58: 3304301 | F58: John Willmott School | G58: Community School | H58: LA maintained schools | I58: Secondary | J58: 195 | K58: 184 | L58: -0.05641025641 | M58: 9000 | O58: 8492 | P58: =VLOOKUP(D58,DFES!$A:$C,2,FALSE) -> JOHN WILLMOTT Sec (16+)
A59: 330 | B59: Birmingham | C59: 138136 | D59: 4307 | E59: 3304307 | F59: The Arthur Terry School | G59: Academy Converter | H59: Academies | I59: Secondary | J59: 287 | K59: 248 | L59: -0.1358885017 | M59: 7500 | O59: 6481
A60: 330 | B60: Birmingham | C60: 138059 | D60: 4323 | E60: 3304323 | F60: Rockwood Academy | G60: Academy Converter | H60: Academies | I60: Secondary | J60: 121 | K60: 122 | L60: 0.00826446281 | M60: 19000 | O60: 19157
A61: 330 | B61: Birmingham | C61: 137053 | D61: 4331 | E61: 3304331 | F61: Plantsbrook School | G61: Academy Converter | H61: Academies | I61: Secondary | J61: 225 | K61: 225 | L61: 0 | M61: 13000 | O61: 13000
A62: 330 | B62: Birmingham | C62: 103529 | D62: 4333 | E62: 3304333 | F62: Balaam Wood School | G62: Community School | H62: LA maintained schools | I62: Secondary | J62: 67 | K62: 74 | L62: 0.1044776119 | M62: 8500 | O62: 9388 | P62: =VLOOKUP(D62,DFES!$A:$C,2,FALSE) -> BALAAM WOOD Sec
A63: 330 | B63: Birmingham | C63: 133306 | D63: 4334 | E63: 3304334 | F63: Al-Hijrah School | G63: Voluntary Aided School | H63: LA maintained schools | I63: All Through | J63: 59 | K63: 58 | L63: -0.01694915254 | M63: 5500 | O63: 5407 | P63: =VLOOKUP(D63,DFES!$A:$C,2,FALSE) -> AL-HIJRAH Sec
A64: 330 | B64: Birmingham | C64: 103531 | D64: 4606 | E64: 3304606 | F64: St Paul's School for Girls | G64: Voluntary Aided School | H64: LA maintained schools | I64: Secondary | J64: 160 | K64: 166 | L64: 0.0375 | M64: 9000 | O64: 9338 | P64: =VLOOKUP(D64,DFES!$A:$C,2,FALSE) -> ST PAUL'S RC GIRLS Sec (16+)
A65: 330 | B65: Birmingham | C65: 141835 | D65: 4616 | E65: 3304616 | F65: St Thomas Aquinas Catholic School | G65: Academy Converter | H65: Academies | I65: Secondary | J65: 205 | K65: 207 | L65: 0.009756097561 | M65: 11500 | O65: 11612
A66: 330 | B66: Birmingham | C66: 103534 | D66: 4625 | E66: 3304625 | F66: St John Wall Catholic School | G66: Voluntary Aided School | H66: LA maintained schools | I66: Secondary | J66: 118 | K66: 120 | L66: 0.01694915254 | M66: 19500 | O66: 19831 | P66: =VLOOKUP(D66,DFES!$A:$C,2,FALSE) -> ST JOHN WALL RC Sec
A67: 330 | B67: Birmingham | C67: 137988 | D67: 4660 | E67: 3304660 | F67: Bishop Vesey's Grammar School | G67: Academy Converter | H67: Academies | I67: Secondary | J67: 160 | K67: 160 | L67: 0 | M67: 0 | O67: 0
A68: 330 | B68: Birmingham | C68: 140524 | D68: 4661 | E68: 3304661 | F68: Bishop Walsh Catholic School | G68: Academy Converter | H68: Academies | I68: Secondary | J68: 175 | K68: 156 | L68: -0.1085714286 | M68: 1500 | O68: 1337
A69: 330 | B69: Birmingham | C69: 103537 | D69: 4663 | E69: 3304663 | F69: St Edmund Campion Catholic School & Sixth Form Centre | G69: Voluntary Aided School | H69: LA maintained schools | I69: Secondary | J69: 184 | K69: 185 | L69: 0.005434782609 | M69: 25500 | O69: 25639 | P69: =VLOOKUP(D69,DFES!$A:$C,2,FALSE) -> ST EDMUND CAMPION RC Sec (16+)
A70: 330 | B70: Birmingham | C70: 103538 | D70: 4664 | E70: 3304664 | F70: Holy Trinity Catholic Media Arts College | G70: Voluntary Aided School | H70: LA maintained schools | I70: Secondary | J70: 105 | K70: 115 | L70: 0.09523809524 | M70: 12500 | O70: 13690 | P70: =VLOOKUP(D70,DFES!$A:$C,2,FALSE) -> HOLY TRINITY RC Sec
A71: 330 | B71: Birmingham | C71: 103539 | D71: 4801 | E71: 3304801 | F71: Cardinal Wiseman Catholic Technology College | G71: Voluntary Aided School | H71: LA maintained schools | I71: Secondary | J71: 115 | K71: 119 | L71: 0.0347826087 | M71: 10000 | O71: 10348 | P71: =VLOOKUP(D71,DFES!$A:$C,2,FALSE) -> CARDINAL WISEMAN RC Sec
A72: 330 | B72: Birmingham | C72: 103541 | D72: 4804 | E72: 3304804 | F72: Archbishop Ilsley Catholic School | G72: Voluntary Aided School | H72: LA maintained schools | I72: Secondary | J72: 201 | K72: 210 | L72: 0.0447761194 | M72: 20000 | O72: 20896 | P72: =VLOOKUP(D72,DFES!$A:$C,2,FALSE) -> ARCHBISHOP ILSLEY RC Sec (16+)
A73: 330 | B73: Birmingham | C73: 139738 | D73: 5400 | E73: 3305400 | F73: The Baverstock Academy | G73: Academy Converter | H73: Academies | I73: Secondary | J73: 125 | K73: 52 | L73: -0.584 | M73: 10000 | O73: 4160
A74: 330 | B74: Birmingham | C74: 103548 | D74: 5401 | E74: 3305401 | F74: Small Heath School | G74: Foundation School | H74: LA maintained schools | I74: Secondary | J74: 199 | K74: 211 | L74: 0.06030150754 | M74: 16000 | O74: 16965 | P74: =VLOOKUP(D74,DFES!$A:$C,2,FALSE) -> SMALL HEATH Sec (16+)
A75: 330 | B75: Birmingham | C75: 103549 | D75: 5402 | E75: 3305402 | F75: Handsworth Grammar School | G75: Voluntary Aided School | H75: LA maintained schools | I75: Secondary | J75: 150 | K75: 150 | L75: 0 | M75: 0 | O75: 0 | P75: =VLOOKUP(D75,DFES!$A:$C,2,FALSE) -> HANDSWORTH GRAMMAR Sec (16+)
A76: 330 | B76: Birmingham | C76: 143435 | D76: 5403 | E76: 3305403 | F76: Great Barr Academy | G76: Academy Converter | H76: Academies | I76: Secondary | J76: 272 | K76: 320 | L76: =IF(J76=0,"",K76/J76-1) -> 0.1764705882 | M76: 30500 | O76: =ROUND(IF(ISNUMBER(L76),M76*L76+M76,N76*K76*500),0) -> 35882
A77: 330 | B77: Birmingham | C77: 137047 | D77: =E77-3300000 -> 5404 | E77: 3305404 | F77: King Edward VI Handsworth School | G77: Academy Converter | H77: Academies | I77: Secondary | J77: 160 | K77: 160 | L77: 0 | M77: 0 | O77: 0
A78: 330 | B78: Birmingham | C78: 137046 | D78: 5405 | E78: 3305405 | F78: King Edward VI Five Ways School | G78: Academy Converter | H78: Academies | I78: Secondary | J78: 180 | K78: 179 | L78: -0.005555555556 | M78: 500 | O78: 497
A79: 330 | B79: Birmingham | C79: 137044 | D79: 5406 | E79: 3305406 | F79: King Edward VI Camp Hill School for Girls | G79: Academy Converter | H79: Academies | I79: Secondary | J79: 150 | K79: 150 | L79: 0 | M79: 0 | O79: 0
A80: 330 | B80: Birmingham | C80: 137045 | D80: 5407 | E80: 3305407 | F80: King Edward VI Camp Hill School for Boys | G80: Academy Converter | H80: Academies | I80: Secondary | J80: 120 | K80: 121 | L80: 0.008333333333 | M80: 0 | O80: 0
A81: 330 | B81: Birmingham | C81: 137043 | D81: 5408 | E81: 3305408 | F81: King Edward VI Aston School | G81: Academy Converter | H81: Academies | I81: Secondary | J81: 120 | K81: 119 | L81: -0.008333333333 | M81: 0 | O81: 0
A82: 330 | B82: Birmingham | C82: 137858 | D82: 5409 | E82: 3305409 | F82: Hall Green School | G82: Academy Converter | H82: Academies | I82: Secondary | J82: 176 | K82: 180 | L82: 0.02272727273 | M82: 15000 | O82: 15341
A83: 330 | B83: Birmingham | C83: 136908 | D83: 5410 | E83: 3305410 | F83: Fairfax | G83: Academy Converter | H83: Academies | I83: Secondary | J83: 252 | K83: 249 | L83: -0.0119047619 | M83: 13500 | O83: 13339
A84: 330 | B84: Birmingham | C84: 136406 | D84: 5411 | E84: 3305411 | F84: Ninestiles, an Academy | G84: Academy Converter | H84: Academies | I84: Secondary | J84: 295 | K84: 297 | L84: 0.006779661017 | M84: 23500 | O84: 23659
A85: 330 | B85: Birmingham | C85: 138695 | D85: 5412 | E85: 3305412 | F85: George Dixon Academy | G85: Academy Converter | H85: Academies | I85: Secondary | J85: 164 | K85: 176 | L85: 0.07317073171 | M85: 32500 | O85: 34878
A86: 330 | B86: Birmingham | C86: 103560 | D86: 5413 | E86: 3305413 | F86: Bishop Challoner Catholic College | G86: Voluntary Aided School | H86: LA maintained schools | I86: Secondary | J86: 196 | K86: 190 | L86: -0.0306122449 | M86: 6500 | O86: 6301 | P86: =VLOOKUP(D86,DFES!$A:$C,2,FALSE) -> BISHOP CHALLONER Sec (16+)
A87: 330 | B87: Birmingham | C87: 136590 | D87: 5414 | E87: 3305414 | F87: Kings Norton Girls' School | G87: Academy Converter | H87: Academies | I87: Secondary | J87: 158 | K87: 161 | L87: 0.01898734177 | M87: 6000 | O87: 6114
A88: 330 | B88: Birmingham | C88: 103562 | D88: 5415 | E88: 3305415 | F88: King's Norton Boys' School | G88: Foundation School | H88: LA maintained schools | I88: Secondary | J88: 122 | K88: 121 | L88: -0.008196721311 | M88: 10500 | O88: 10414 | P88: =VLOOKUP(D88,DFES!$A:$C,2,FALSE) -> KINGS NORTON BOYS Sec (16+)
A89: 330 | B89: Birmingham | C89: 103563 | D89: 5416 | E89: 3305416 | F89: Colmers School and Sixth Form College | G89: Foundation School | H89: LA maintained schools | I89: Secondary | J89: 210 | K89: 209 | L89: -0.004761904762 | M89: 16500 | O89: 16421 | P89: =VLOOKUP(D89,DFES!$A:$C,2,FALSE) -> COLMERS Sec
A90: 330 | B90: Birmingham | C90: 135907 | D90: 6905 | E90: 3306905 | F90: Heartlands Academy | G90: Academy Sponsor Led | H90: Academies | I90: Secondary | J90: 158 | K90: 162 | L90: 0.0253164557 | M90: 13000 | O90: 13329
A91: 330 | B91: Birmingham | C91: 136152 | D91: 6906 | E91: 3306906 | F91: King Edward VI Sheldon Heath Academy | G91: Academy Sponsor Led | H91: Academies | I91: Secondary | J91: 222 | K91: 222 | L91: 0 | M91: 22000 | O91: 22000
A92: 330 | B92: Birmingham | C92: 135911 | D92: 6907 | E92: 3306907 | F92: Shenley Academy | G92: Academy Sponsor Led | H92: Academies | I92: Secondary | J92: 205 | K92: 203 | L92: -0.009756097561 | M92: 15000 | O92: 14854
A93: 330 | B93: Birmingham | C93: 135970 | D93: 6908 | E93: 3306908 | F93: Ark St Alban's Academy | G93: Academy Sponsor Led | H93: Academies | I93: Secondary | J93: 125 | K93: 121 | L93: -0.032 | M93: 15000 | O93: 14520
A94: 330 | B94: Birmingham | C94: 136032 | D94: 6909 | E94: 3306909 | F94: North Birmingham Academy | G94: Academy Sponsor Led | H94: Academies | I94: Secondary | J94: 177 | K94: 185 | L94: 0.04519774011 | M94: 17000 | O94: 17768
A95: 330 | B95: Birmingham | C95: 136213 | D95: 6910 | E95: 3306910 | F95: Harborne Academy | G95: Academy Sponsor Led | H95: Academies | I95: Secondary | J95: 118 | K95: 117 | L95: -0.008474576271 | M95: 15500 | O95: 15369
A96: 330 | B96: Birmingham | C96: 103601 | D96: 7009 | E96: 3307009 | F96: Victoria School | G96: Community Special School | H96: Special schools | I96: Not applicable | J96: 15 | K96: 12 | L96: -0.2 | M96: 7500 | O96: 6000 | P96: =VLOOKUP(D96,DFES!$A:$C,2,FALSE) -> VICTORIA Spcl
A97: 330 | B97: Birmingham | C97: 141252 | D97: 7013 | E97: 3307013 | F97: Calthorpe Teaching Academy | G97: Academy Special Converter | H97: Academies | I97: Not applicable | J97: 32 | K97: 34 | L97: 0.0625 | M97: 16000 | O97: 17000
A98: 330 | B98: Birmingham | C98: 103605 | D98: 7014 | E98: 3307014 | F98: Uffculme School | G98: Community Special School | H98: Special schools | I98: Not applicable | J98: 8 | K98: 14 | L98: 0.75 | M98: 3500 | O98: 6125 | P98: =VLOOKUP(D98,DFES!$A:$C,2,FALSE) -> UFFCULME Spcl
A99: 330 | B99: Birmingham | C99: 103606 | D99: 7016 | E99: 3307016 | F99: Baskerville School | G99: Community Special School | H99: Special schools | I99: Not applicable | J99: 14 | K99: 17 | L99: 0.2142857143 | M99: 6500 | O99: 7893 | P99: =VLOOKUP(D99,DFES!$A:$C,2,FALSE) -> BASKERVILLE Spcl
A100: 330 | B100: Birmingham | C100: 103609 | D100: 7026 | E100: 3307026 | F100: Hunters Hill Technology College | G100: Community Special School | H100: Special schools | I100: Not applicable | J100: 23 | K100: 26 | L100: 0.1304347826 | M100: 9500 | O100: 10739 | P100: =VLOOKUP(D100,DFES!$A:$C,2,FALSE) -> HUNTERS HILL Spcl
A101: 330 | B101: Birmingham | C101: 103610 | D101: 7027 | E101: 3307027 | F101: Hallmoor School | G101: Community Special School | H101: Special schools | I101: Not applicable | J101: 32 | K101: 20 | L101: -0.375 | M101: 15500 | O101: 9688 | P101: =VLOOKUP(D101,DFES!$A:$C,2,FALSE) -> HALLMOOR Spcl
A102: 330 | B102: Birmingham | C102: 103611 | D102: 7030 | E102: 3307030 | F102: Braidwood School for the Deaf | G102: Foundation Special School | H102: Special schools | I102: Not applicable | J102: 10 | K102: 5 | L102: -0.5 | M102: 5000 | O102: 2500 | P102: =VLOOKUP(D102,DFES!$A:$C,2,FALSE) -> BRAIDWOOD Spcl
A103: 330 | B103: Birmingham | C103: 138281 | D103: 7031 | E103: 3307031 | F103: Wilson Stuart School | G103: Academy Special Converter | H103: Academies | I103: Not applicable | J103: 17 | K103: 17 | L103: 0 | M103: 6500 | O103: 6500
A104: 330 | B104: Birmingham | C104: 103613 | D104: 7033 | E104: 3307033 | F104: Selly Oak Trust School | G104: Foundation Special School | H104: Special schools | I104: Not applicable | J104: 64 | K104: 57 | L104: -0.109375 | M104: 30500 | O104: 27164 | P104: =VLOOKUP(D104,DFES!$A:$C,2,FALSE) -> SELLY OAK Spcl
A105: 330 | B105: Birmingham | C105: 103614 | D105: 7034 | E105: 3307034 | F105: Priestley Smith School | G105: Community Special School | H105: Special schools | I105: Not applicable | J105: 8 | K105: 6 | L105: -0.25 | M105: 3000 | O105: 2250 | P105: =VLOOKUP(D105,DFES!$A:$C,2,FALSE) -> PRIESTLEY SMITH Spcl
A106: 330 | B106: Birmingham | C106: 103615 | D106: 7035 | E106: 3307035 | F106: The Dame Ellen Pinsent School | G106: Community Special School | H106: Special schools | I106: Not applicable | J106: 0 | K106: 1 | M106: 0 | N106: 0.2089777143 | O106: 104 | P106: =VLOOKUP(D106,DFES!$A:$C,2,FALSE) -> DAME ELLEN PINSENT Spcl
A107: 330 | B107: Birmingham | C107: 103616 | D107: 7036 | E107: 3307036 | F107: Queensbury School | G107: Community Special School | H107: Special schools | I107: Not applicable | J107: 34 | K107: 3 | L107: -0.9117647059 | M107: 15500 | O107: 1368 | P107: =VLOOKUP(D107,DFES!$A:$C,2,FALSE) -> QUEENSBURY Spcl
A108: 330 | B108: Birmingham | C108: 103619 | D108: 7040 | E108: 3307040 | F108: Mayfield School | G108: Community Special School | H108: Special schools | I108: Not applicable | J108: 16 | K108: 22 | L108: 0.375 | M108: 8000 | O108: 11000 | P108: =VLOOKUP(D108,DFES!$A:$C,2,FALSE) -> MAYFIELD Spcl
A109: 330 | B109: Birmingham | C109: 103625 | D109: 7050 | E109: 3307050 | F109: Fox Hollies School and Performing Arts College | G109: Community Special School | H109: Special schools | I109: Not applicable | J109: 10 | K109: 11 | L109: 0.1 | M109: 4500 | O109: 4950 | P109: =VLOOKUP(D109,DFES!$A:$C,2,FALSE) -> FOX HOLLIES Spcl
A110: 330 | B110: Birmingham | C110: 103628 | D110: 7053 | E110: 3307053 | F110: Oscott Manor School | G110: Community Special School | H110: Special schools | I110: Not applicable | J110: 15 | K110: 16 | L110: 0.06666666667 | M110: 6000 | O110: 6400 | P110: =VLOOKUP(D110,DFES!$A:$C,2,FALSE) -> OSCOTT MANOR Spcl
A111: 330 | B111: Birmingham | C111: 103632 | D111: 7062 | E111: 3307062 | F111: Lindsworth School | G111: Community Special School | H111: Special schools | I111: Not applicable | J111: 8 | K111: 12 | L111: 0.5 | M111: 3000 | O111: 4500 | P111: =VLOOKUP(D111,DFES!$A:$C,2,FALSE) -> LINDSWORTH Spcl
A112: 330 | B112: Birmingham | C112: 139526 | D112: 7063 | E112: 3307063 | F112: James Brindley School | G112: Academy Special Converter | H112: Academies | I112: Not applicable | J112: 13 | K112: 10 | L112: -0.2307692308 | M112: 2500 | O112: 1923
